﻿Analysed Amount,Supplier,3CCN - Level 3 Cost Centre Name,5CCN - Level 5 Cost Centre Name,9CCN - Level 9 Cost Centre Name,9CCC - Level 9 Cost Centre Code,9AN - Level 9 Account Name,Date Paid,5AN - Level 5 Account Name,Transaction Reference,Dept
"8,036,040.43",Nottinghamshire County Council,Collection Fund,Precepting Authorities,Notts Cc Precept & Ndr Share,5930,Precept Paid,13/10/2021,Collection Fund Accounts,125891,Finance
"8,036,040.43",Nottinghamshire County Council,Collection Fund,Precepting Authorities,Notts Cc Precept & Ndr Share,5930,Precept Paid,17/11/2021,Collection Fund Accounts,125892,Finance
"8,036,040.43",Nottinghamshire County Council,Collection Fund,Precepting Authorities,Notts Cc Precept & Ndr Share,5930,Precept Paid,23/12/2021,Collection Fund Accounts,125893,Finance
"1,078,029.49",Willmott Dixon Construction Ltd,Capital Expenditure,Transformation & Innovation,Bingham Leisure Hub,0314,Contractors-Third Party,15/10/2021,Third Party Payments,132731,Neighbourhoods
"1,076,162.00",Notts Police & Crime Commissioner,Collection Fund,Precepting Authorities,Notts Police Precept & Ndr,5932,Precept Paid,13/10/2021,Collection Fund Accounts,125911,Finance
"1,076,162.00",Notts Police & Crime Commissioner,Collection Fund,Precepting Authorities,Notts Police Precept & Ndr,5932,Precept Paid,17/11/2021,Collection Fund Accounts,125912,Finance
"1,076,162.00",Notts Police & Crime Commissioner,Collection Fund,Precepting Authorities,Notts Police Precept & Ndr,5932,Precept Paid,23/12/2021,Collection Fund Accounts,125913,Finance
"1,067,000.00","Dept For Buinsess, Energy & Ind Strategy",Assets,Current Assets,Covid19 Funding (Drs),6219,T4 Top-Up,10/12/2021,T4 Top-Up,133757,Finance
"938,923.71",Willmott Dixon Construction Ltd,Capital Expenditure,Transformation & Innovation,Bingham Leisure Hub,0314,Contractors-Third Party,12/11/2021,Third Party Payments,133510,Neighbourhoods
"915,800.74",Willmott Dixon Construction Ltd,Capital Expenditure,Transformation & Innovation,Bingham Leisure Hub,0314,Contractors-Third Party,14/12/2021,Third Party Payments,134618,Neighbourhoods
"533,637.00","Dept For Buinsess, Energy & Ind Strategy",Assets,Current Assets,Covid19 Funding (Drs),6219,T4 Discretionary,10/12/2021,T4 Discretionary,133757,Finance
"393,780.35",Notts Fire And Rescue Service,Collection Fund,Precepting Authorities,Notts Fire Precept & Ndr,5933,Precept Paid,13/10/2021,Collection Fund Accounts,125901,Finance
"393,780.35",Notts Fire And Rescue Service,Collection Fund,Precepting Authorities,Notts Fire Precept & Ndr,5933,Precept Paid,17/11/2021,Collection Fund Accounts,125902,Finance
"393,780.35",Notts Fire And Rescue Service,Collection Fund,Precepting Authorities,Notts Fire Precept & Ndr,5933,Precept Paid,23/12/2021,Collection Fund Accounts,125903,Finance
"384,102.00","Dept For Buinsess, Energy & Ind Strategy",Assets,Current Assets,Covid19 Funding (Drs),6219,Local Restrcns Supp Gt-Lckd,10/12/2021,Local Restrcns Supp Gt-Lckd,133757,Finance
"297,011.71",Limonta Smith Jv Ltd,Capital Expenditure,Communities,Gresham Pitches,0280,Contractors-Third Party,07/10/2021,Third Party Payments,132493,Economic Growth
"188,547.00","Dept For Buinsess, Energy & Ind Strategy",Assets,Current Assets,Covid19 Funding (Drs),6219,T3 Closed Dec,10/12/2021,T3 Closed Dec,133757,Finance
"187,551.00",Terberg Matec Uk Limited,Capital Expenditure,Neighbourhoods,Vehicle Replacement,0680,Vehicles Acquisition,20/10/2021,Supplies & Services,132521,Neighbourhoods
"150,870.50",Trent Valley Internal Drainage Board,Finance & Corporate Services,Financial Services,Internal Drainage Board Levies,1047,Other Services,25/11/2021,Supplies & Services,127274,Finance
"147,261.53",Streetwise Environmental Ltd           1,Neighbourhoods,Waste & Fleet Management,Streetwise Contract,8301,Contractors-Third Party,29/10/2021,Third Party Payments,132810,Neighbourhoods
"147,261.53",Streetwise Environmental Ltd           1,Neighbourhoods,Waste & Fleet Management,Streetwise Contract,8301,Contractors-Third Party,25/11/2021,Third Party Payments,133641,Neighbourhoods
"139,002.58",Parkwood Leisure Ltd,Capital Expenditure,Transformation & Innovation,Bingham Leisure Hub,0314,Other Equipment/Materials,07/12/2021,Supplies & Services,133873,Neighbourhoods
"132,642.79",As Enterprises Limited,Capital Expenditure,Transformation & Innovation,The Crematorium,0684,Contractors-Third Party,22/12/2021,Third Party Payments,135447,Neighbourhoods
"104,644.55",Ruddington Parish Council,Liabilities,Long Term Liabilities,Cil - Ruddington Neighbourhood,6877,Balance Sheet Exp In The Year,12/11/2021,Balance Sheet Exp In The Year,133284,Finance
"81,394.23",Limonta Smith Jv Ltd,Capital Expenditure,Communities,Gresham Pitches,0280,Contractors-Third Party,16/11/2021,Third Party Payments,133495,Economic Growth
"74,195.00",Nottingham City Council,Neighbourhoods,Waste & Fleet Management,Eastcroft Depot,4002,Olas - Nottm City Council,30/11/2021,Third Party Payments,133193,Neighbourhoods
"60,635.25",Tgn Construction (Yorks) Ltd,Capital Expenditure,Communities,Boundary Rd Cycle Track S.E.,0670,Contractors-Third Party,15/12/2021,Third Party Payments,134711,Neighbourhoods
"55,019.07",J Pugh-Lewis Limited,Capital Expenditure,Communities,Gresham Pitches,0280,Projects & Activities,16/11/2021,Supplies & Services,133427,Economic Growth
"48,083.58",Epaton Ltd,Capital Expenditure,Finance & Corporate Services,Ict Security,0602,Computer Hardware,12/11/2021,Supplies & Services,133310,Obsolete
"45,359.21",Nottingham City Council,Neighbourhoods,Waste & Fleet Management,Fleet,8600,Contractors-Transport,23/11/2021,Transport Related Expenditure,133877,Neighbourhoods
"40,550.00",Nottingham City Council,Neighbourhoods,Waste & Fleet Management,Fleet,8600,Contractors-Transport,20/10/2021,Transport Related Expenditure,132847,Neighbourhoods
"38,187.47",Nottingham City Council,Neighbourhoods,Waste & Fleet Management,Fleet,8600,Contractors-Transport,20/10/2021,Transport Related Expenditure,132846,Neighbourhoods
"30,082.00",Parkwood Leisure Ltd,Capital Expenditure,Transformation & Innovation,Bingham Leisure Hub,0314,Other Equipment/Materials,07/12/2021,Supplies & Services,133875,Neighbourhoods
"30,000.00",Candor Care Limited - Accounts Department,Capital Expenditure,Neighbourhoods,Disabled Facilities Grant,0332,Grants,30/11/2021,Supplies & Services,134035,Public Protection
"29,937.57",Nottingham City Council,Neighbourhoods,Waste & Fleet Management,Fleet,8600,Diesel,29/10/2021,Transport Related Expenditure,133047,Neighbourhoods
"28,521.52",Nottinghamshire County Council,Neighbourhoods,Leisure Contracts & Car Parks,East Leake Leisure Centre,1700,Olas - Notts County Council,16/12/2021,Third Party Payments,135021,Neighbourhoods
"28,521.52",Nottinghamshire County Council,Neighbourhoods,Leisure Contracts & Car Parks,East Leake Leisure Centre,1700,Olas - Notts County Council,16/12/2021,Third Party Payments,135022,Neighbourhoods
"28,521.52",Nottinghamshire County Council,Neighbourhoods,Leisure Contracts & Car Parks,East Leake Leisure Centre,1700,Olas - Notts County Council,16/12/2021,Third Party Payments,135023,Neighbourhoods
"28,521.52",Nottinghamshire County Council,Neighbourhoods,Leisure Contracts & Car Parks,East Leake Leisure Centre,1700,Olas - Notts County Council,16/12/2021,Third Party Payments,135024,Neighbourhoods
"28,521.52",Nottinghamshire County Council,Neighbourhoods,Leisure Contracts & Car Parks,East Leake Leisure Centre,1700,Olas - Notts County Council,16/12/2021,Third Party Payments,135025,Neighbourhoods
"27,993.24",Nottingham City Council,Neighbourhoods,Waste & Fleet Management,Fleet,8600,Diesel,23/11/2021,Transport Related Expenditure,133878,Neighbourhoods
"25,469.91",Nottingham City Council,Neighbourhoods,Waste & Fleet Management,Fleet,8600,Contractors-Transport,23/11/2021,Transport Related Expenditure,133876,Neighbourhoods
"25,315.59",T&S Heating Ltd,Capital Expenditure,Neighbourhoods,Disabled Facilities Grant,0332,Grants,10/12/2021,Supplies & Services,134455,Public Protection
"24,597.80",Parkwood Leisure Ltd,Capital Expenditure,Transformation & Innovation,Bingham Leisure Hub,0314,Other Equipment/Materials,07/12/2021,Supplies & Services,133874,Neighbourhoods
"24,000.00",Grice Construction Ltd,Capital Expenditure,Neighbourhoods,Disabled Facilities Grant,0332,Grants,07/10/2021,Supplies & Services,132141,Public Protection
"21,750.00",Egbert H Taylor & Co Ltd,Neighbourhoods,Waste & Fleet Management,Waste Collection,8403,Other Equipment/Materials,29/10/2021,Supplies & Services,133094,Neighbourhoods
"20,343.00",Acs Systems Uk Ltd T/A Acs Office Solutions,Capital Expenditure,Finance & Corporate Services,Ict Replacement Programme,0592,Computer Hardware,16/12/2021,Supplies & Services,134257,Obsolete
"20,214.41",Nottinghamshire County Council,Communities,Community Development,Holiday Activities & Food Prog,1594,Projects & Activities,12/11/2021,Supplies & Services,133045,Neighbourhoods
"17,550.00",Ridge And Partners Llp,Capital Expenditure,Transformation & Innovation,The Crematorium,0684,Programme Budget,05/10/2021,Premises Related Expenditure,132396,Neighbourhoods
"17,284.00",Gedling Borough Council,Finance & Corporate Services,Financial Services,Financial Services,4705,Contractors-Supplies & Servs,07/10/2021,Supplies & Services,132335,Finance
"17,153.00",Dae Mechanical Services Ltd,Capital Expenditure,Communities,Gresham Pavilion,0347,Contractors-Third Party,07/10/2021,Third Party Payments,131725,Neighbourhoods
"16,368.72",Advanced Business Solutions,Finance & Corporate Services,Ict,It Rechargeable Costs,4722,Maintenance Contracts - S&S,12/11/2021,Supplies & Services,133046,Corporate Services
"14,995.21",Obam Lift Services Ltd,Capital Expenditure,Neighbourhoods,Disabled Facilities Grant,0332,Grants,15/10/2021,Supplies & Services,132651,Public Protection
"13,530.00",One51 Es Plastics (Uk) Ltd T/A Mgb Plastics,Neighbourhoods,Waste & Fleet Management,Waste Collection,8403,Other Equipment/Materials,05/10/2021,Supplies & Services,132332,Neighbourhoods
"13,517.31",Western Power Distribution (East Mids) Ltd,Capital Expenditure,Transformation & Innovation,Bingham Leisure Hub,0314,Contractors-Third Party,23/12/2021,Third Party Payments,135039,Neighbourhoods
"13,416.64",Centrica Business Solutions Uk Limited,Transformation,Property Services,Arena Civic Centre,4718,Service Maintenance Contracts,05/10/2021,Premises Related Expenditure,131125,Economic Growth
"13,200.00",One51 Es Plastics (Uk) Ltd T/A Mgb Plastics,Neighbourhoods,Waste & Fleet Management,Waste Collection,8403,Other Equipment/Materials,12/11/2021,Supplies & Services,133017,Neighbourhoods
"12,891.00",Terry Group Ltd,Capital Expenditure,Neighbourhoods,Disabled Facilities Grant,0332,Grants,10/12/2021,Supplies & Services,133856,Public Protection
"12,500.00",Radcliffe On Trent Parish Council,Transformation,Economic Regeneration,Economic Development,1887,Legal & Professional Services,10/12/2021,Supplies & Services,134085,Economic Growth
"12,310.00",Learning Pool Ltd,Transformation,Human Resources,Corporate Training,4893,Subscriptions,14/12/2021,Supplies & Services,134082,Chief Executive Department 
"12,294.00",Mr Max And Patrina Haker,Capital Expenditure,Neighbourhoods,Disabled Facilities Grant,0332,Grants,04/11/2021,Supplies & Services,133059,Public Protection
"12,248.58",J Pugh-Lewis Limited,Capital Expenditure,Communities,Gresham Pitches,0280,Projects & Activities,09/11/2021,Supplies & Services,132827,Economic Growth
"12,112.50",Advanced Business Solutions,Capital Expenditure,Finance & Corporate Services,Applications/Apps,0605,Software,19/11/2021,Supplies & Services,133303,Corporate Services
"11,880.00",One51 Es Plastics (Uk) Ltd T/A Mgb Plastics,Neighbourhoods,Waste & Fleet Management,Waste Collection,8403,Other Equipment/Materials,20/10/2021,Supplies & Services,132512,Neighbourhoods
"11,805.32",Cropwell Bishop Parish Council,Liabilities,Long Term Liabilities,Cil Cropwell Bishop,6879,Balance Sheet Exp In The Year,12/11/2021,Balance Sheet Exp In The Year,133281,Finance
"11,435.00",Civica Uk Ltd,Finance & Corporate Services,Ict,It Rechargeable Costs,4722,Maintenance Contracts - S&S,25/11/2021,Supplies & Services,133368,Corporate Services
"11,005.00",County Fencing,Capital Expenditure,Transformation & Innovation,U10 Moorbridge Security 21-22,0208,Contractors-Third Party,22/12/2021,Third Party Payments,135027,Economic Growth
"10,435.84",Lodge Tyre Co.Ltd,Neighbourhoods,Waste & Fleet Management,Waste Collection,8403,Tyres,22/12/2021,Transport Related Expenditure,135463,Neighbourhoods
"10,110.83",Hanson Buildings Limited,Capital Expenditure,Communities,Rcp Visitor Centre,0504,Contractors-Third Party,07/12/2021,Third Party Payments,134380,Economic Growth
"10,000.00",Ashfield District Council,Neighbourhoods,Strategic Housing,Homelessness Prevention,1147,Projects & Activities,29/10/2021,Supplies & Services,133091,Public Protection
"9,631.50",Stage Connections Ltd,Communities,Community Development,Arts & Events,1550,Projects & Activities,16/12/2021,Supplies & Services,135026,Neighbourhoods
"9,500.00",Link Treasury Services Ltd,Finance & Corporate Services,Financial Services,Interest Receipts,1034,Legal & Professional Services,19/11/2021,Supplies & Services,133305,Finance
"9,483.00",P.Waller (Decorators) Ltd,Capital Expenditure,Communities,Gresham Pavilion,0347,Contractors-Third Party,05/10/2021,Third Party Payments,131832,Neighbourhoods
"9,434.91",Lodge Tyre Co.Ltd,Neighbourhoods,Waste & Fleet Management,Waste Collection,8403,Tyres,04/11/2021,Transport Related Expenditure,133246,Neighbourhoods
"9,301.58",Keyworth Parish Council,Liabilities,Long Term Liabilities,Cil Neighbourhood Keyworth,6875,Balance Sheet Exp In The Year,12/11/2021,Balance Sheet Exp In The Year,133282,Finance
"9,150.00",Beechmast Ltd,Communities,Community Development,Environmental Promotion,1590,Legal & Professional Services,07/10/2021,Supplies & Services,132399,Public Protection
"9,144.91",Ridge And Partners Llp,Capital Expenditure,Transformation & Innovation,The Crematorium,0684,Legal & Professional Services,07/12/2021,Supplies & Services,134327,Neighbourhoods
"9,118.00",Ridge And Partners Llp,Capital Expenditure,Transformation & Innovation,The Crematorium,0684,Legal & Professional Services,04/11/2021,Supplies & Services,133309,Neighbourhoods
"9,000.00",Dispace Technology Limited,Neighbourhoods,Waste & Fleet Management,Waste Collection,8403,Other Equipment/Materials,30/11/2021,Supplies & Services,133853,Neighbourhoods
"8,800.00",Henry Riley Llp,Capital Expenditure,Transformation & Innovation,Bingham Leisure Hub,0314,Legal & Professional Services,20/10/2021,Supplies & Services,132351,Neighbourhoods
"8,800.00",Henry Riley Llp,Capital Expenditure,Transformation & Innovation,Bingham Leisure Hub,0314,Legal & Professional Services,17/11/2021,Supplies & Services,133382,Neighbourhoods
"8,800.00",Henry Riley Llp,Capital Expenditure,Transformation & Innovation,Bingham Leisure Hub,0314,Legal & Professional Services,14/12/2021,Supplies & Services,134074,Neighbourhoods
"8,752.82",Dcr Electrical Ltd,Capital Expenditure,Communities,Warm Homes On Prescription,0337,Grants,23/11/2021,Supplies & Services,133831,Neighbourhoods
"8,719.75",Virgin Media Business,Finance & Corporate Services,Ict,It Rechargeable Costs,4722,Cyber Security,25/11/2021,Supplies & Services,133733,Corporate Services
"8,686.00",A R Signs Ltd,Finance & Corporate Services,"Performance, Repn & Comms",Performance And Reputation,4710,External Printing,23/11/2021,Supplies & Services,133388,Corporate Services
"8,407.00",Trent Valley Plumbing & Build,Capital Expenditure,Neighbourhoods,Disabled Facilities Grant,0332,Grants,23/11/2021,Supplies & Services,133721,Public Protection
"8,272.98",As Enterprises Limited,Capital Expenditure,Transformation & Innovation,Cotgrave Phase 2,0387,Contractors-Third Party,20/10/2021,Third Party Payments,132867,Economic Growth
"8,250.03",Lodge Tyre Co.Ltd,Neighbourhoods,Waste & Fleet Management,Waste Collection,8403,Tyres,05/10/2021,Transport Related Expenditure,132398,Neighbourhoods
"8,026.48",A R Signs Ltd,Finance & Corporate Services,"Performance, Repn & Comms",Performance And Reputation,4710,External Printing,23/11/2021,Supplies & Services,133387,Corporate Services
"8,000.00",Kpmg Llp,Finance & Corporate Services,Revenues & Benefits,Housing Benefits Admin.,1140,External Audit Fee,26/10/2021,Supplies & Services,132820,Finance
"7,948.00",Mazars Llp,Finance & Corporate Services,Financial Services,Corporate Management,4895,External Audit Fee,29/10/2021,Supplies & Services,132861,Finance
"7,644.91",Ridge And Partners Llp,Capital Expenditure,Transformation & Innovation,The Crematorium,0684,Legal & Professional Services,22/12/2021,Supplies & Services,135467,Neighbourhoods
"7,605.00",William Saunders,Capital Expenditure,Transformation & Innovation,Bingham Leisure Hub,0314,Contractors-Third Party,05/10/2021,Third Party Payments,131813,Neighbourhoods
"7,564.00",Team Netsol Limited,Finance & Corporate Services,Ict,It Rechargeable Costs,4722,Maintenance Contracts - S&S,19/11/2021,Supplies & Services,133324,Corporate Services
"7,500.00",East Leake Parish Council,Communities,Community Development,Environmental Promotion,1590,Legal & Professional Services,20/10/2021,Supplies & Services,132139,Public Protection
"7,500.00",Peter Tew & Co,Transformation,Customer Services,Customer Services,4807,Premises Rents,20/12/2021,Premises Related Expenditure,134483,Corporate Services
"7,225.75",Nottingham City Council,Transformation,Human Resources,Human Resources,4709,Agency Staff,04/11/2021,Employee Related Expenditure,133067,Chief Executive Department 
"7,187.50",G2 Recruitment Solutions,Communities,Planning & Growth,Development Control,1161,Agency Staff,20/12/2021,Employee Related Expenditure,134247,Planning
"7,160.00",P.Waller (Decorators) Ltd,Capital Expenditure,Communities,Lutterell Hall Enhancements,0326,Responsive Works - Buildings,07/10/2021,Premises Related Expenditure,132193,Economic Growth
"6,968.00",New Dec Interiors Ltd,Capital Expenditure,Neighbourhoods,Disabled Facilities Grant,0332,Grants,15/10/2021,Supplies & Services,132705,Public Protection
"6,854.18",Notts County Cricket Club,Finance & Corporate Services,Democratic Services,Mayoral Expenses,1001,Hospitality,05/10/2021,Supplies & Services,131920,Corporate Services
"6,852.00",Granicus Llc,Finance & Corporate Services,"Performance, Repn & Comms",Performance And Reputation,4710,Legal & Professional Services,15/10/2021,Supplies & Services,132331,Corporate Services
"6,846.93",Acs Systems Uk Ltd T/A Acs Office Solutions,Capital Expenditure,Finance & Corporate Services,Technical Infrastructure,0603,Computer Hardware,16/12/2021,Supplies & Services,134524,Corporate Services
"6,690.56",Aumas Limited,Capital Expenditure,Neighbourhoods,Disabled Facilities Grant,0332,Grants,23/11/2021,Supplies & Services,133822,Public Protection
"6,617.13",Tunstall Response Ltd,Neighbourhoods,Strategic Housing,Home Alarms,1137,Other Services,23/11/2021,Supplies & Services,133335,Public Protection
"6,551.30",Browne Jacobson,Transformation,Legal,Legal Services,4701,Other Income,23/11/2021,Income,133413,Chief Executive Department 
"6,519.00",Streetwise Environmental Ltd           1,Communities,Community Development,Arts & Events,1550,Projects & Activities,22/12/2021,Supplies & Services,133777,Neighbourhoods
"6,325.00",G2 Recruitment Solutions,Communities,Planning & Growth,Development Control,1161,Agency Staff,20/12/2021,Employee Related Expenditure,133480,Planning
"6,323.00",Trent Valley Plumbing & Build,Capital Expenditure,Neighbourhoods,Disabled Facilities Grant,0332,Grants,02/11/2021,Supplies & Services,133037,Public Protection
"6,250.00",Trent Valley Plumbing & Build,Capital Expenditure,Neighbourhoods,Disabled Facilities Grant,0332,Grants,16/11/2021,Supplies & Services,133512,Public Protection
"6,237.83",Severn Trent Water,Neighbourhoods,Waste & Fleet Management,Tanker Services,1948,Waste Disposal,05/10/2021,Supplies & Services,132007,Neighbourhoods
"6,186.00",Trent Valley Plumbing & Build,Capital Expenditure,Neighbourhoods,Disabled Facilities Grant,0332,Grants,16/11/2021,Supplies & Services,133476,Public Protection
"6,015.00",Sherwood Contractors Ltd,Capital Expenditure,Neighbourhoods,Disabled Facilities Grant,0332,Grants,15/10/2021,Supplies & Services,132652,Public Protection
"6,009.30",Nufuture Recruitment Ltd,Finance & Corporate Services,Ict,It,4703,Maintenance Contracts - S&S,23/11/2021,Supplies & Services,133409,Corporate Services
"5,964.06",Dae Mechanical Services Ltd,Communities,Community Development,Gresham,8950,Planned Maintenance Recharge,07/10/2021,Supplies & Services,131934,Neighbourhoods
"5,796.00",Stannah Lift Services Ltd,Capital Expenditure,Neighbourhoods,Disabled Facilities Grant,0332,Grants,15/10/2021,Supplies & Services,132653,Public Protection
"5,771.01",Bt Telephone Payment Centre,Finance & Corporate Services,Ict,It Rechargeable Costs,4722,Maintenance Contracts - S&S,26/10/2021,Supplies & Services,132756,Corporate Services
"5,750.00",David Harber,Communities,Community Development,Community Development,1581,Projects & Activities,12/10/2021,Supplies & Services,132637,Neighbourhoods
"5,726.13",Electoral Reform Services,Finance & Corporate Services,Democratic Services,Electoral Registration,1026,Telephone Response,22/12/2021,Supplies & Services,134608,Chief Executive Department 
"5,608.41",Toot Hill School,Neighbourhoods,Leisure Contracts & Car Parks,Leisure Management Contract,1795,Electricity,23/12/2021,Premises Related Expenditure,133933,Neighbourhoods
"5,582.80",Bridgework Consulting Ltd,Transformation,Human Resources,Corporate Training,4893,Training Expenses,07/10/2021,Employee Related Expenditure,131918,Chief Executive Department 
"5,575.00",Idox Software Limited (Elections),Communities,Planning & Growth,Development Control,1161,Projects & Activities,23/12/2021,Supplies & Services,134649,Planning
"5,496.88",Woodstreet Maintenance Ltd,Capital Expenditure,Neighbourhoods,Disabled Facilities Grant,0332,Grants,16/11/2021,Supplies & Services,133479,Public Protection
"5,465.08",Lodge Tyre Co.Ltd,Neighbourhoods,Waste & Fleet Management,Waste Collection,8403,Tyres,12/10/2021,Transport Related Expenditure,132636,Neighbourhoods
"5,348.00",Total Bathing,Capital Expenditure,Neighbourhoods,Disabled Facilities Grant,0332,Grants,02/11/2021,Supplies & Services,132978,Public Protection
"5,305.00",Sherwood Contractors Ltd,Capital Expenditure,Neighbourhoods,Disabled Facilities Grant,0332,Grants,23/11/2021,Supplies & Services,133823,Public Protection
"5,284.11",Toot Hill School,Neighbourhoods,Leisure Contracts & Car Parks,Leisure Management Contract,1795,Electricity,30/11/2021,Premises Related Expenditure,133289,Neighbourhoods
"5,280.00",Trent Valley Plumbing & Build,Capital Expenditure,Neighbourhoods,Disabled Facilities Grant,0332,Grants,30/11/2021,Supplies & Services,134060,Public Protection
"5,250.00",M.R.J.Faulks & Son Ltd,Communities,Community Development,Rushcliffe Country Park,1375,Maintenance Contracts - S&S,16/11/2021,Supplies & Services,133088,Neighbourhoods
"5,233.46",Severn Trent Water,Neighbourhoods,Waste & Fleet Management,Tanker Services,1948,Waste Disposal,30/11/2021,Supplies & Services,133614,Neighbourhoods
"5,164.75",Virgin Media Business,Finance & Corporate Services,Ict,It Rechargeable Costs,4722,Maintenance Contracts - S&S,25/11/2021,Supplies & Services,133732,Corporate Services
"5,157.00",Sherwood Contractors Ltd,Capital Expenditure,Neighbourhoods,Disabled Facilities Grant,0332,Grants,16/11/2021,Supplies & Services,133511,Public Protection
"5,147.34",Frontline Recruitment Ltd,Neighbourhoods,Waste & Fleet Management,Waste Collection,8403,Agency Staff,05/10/2021,Employee Related Expenditure,132201,Neighbourhoods
"5,120.00",New Dec Interiors Ltd,Capital Expenditure,Neighbourhoods,Disabled Facilities Grant,0332,Grants,14/12/2021,Supplies & Services,134484,Public Protection
"5,103.64",Aumas Limited,Capital Expenditure,Neighbourhoods,Disabled Facilities Grant,0332,Grants,12/10/2021,Supplies & Services,132491,Public Protection
"5,066.28",Frontline Recruitment Ltd,Neighbourhoods,Waste & Fleet Management,Waste Collection,8403,Agency Staff,02/11/2021,Employee Related Expenditure,133018,Neighbourhoods
"5,051.15",Dolphin Mobility East Mids Ltd,Capital Expenditure,Neighbourhoods,Disabled Facilities Grant,0332,Grants,26/10/2021,Supplies & Services,132850,Public Protection
"5,000.00",Rural Retailers Ltd,Transformation,Economic Regeneration,High Streets Safely,1881,Legal & Professional Services,15/10/2021,Supplies & Services,132729,Economic Growth
"4,985.00",Total Bathing,Capital Expenditure,Neighbourhoods,Disabled Facilities Grant,0332,Grants,09/11/2021,Supplies & Services,133321,Public Protection
"4,967.86",Frontline Recruitment Ltd,Neighbourhoods,Waste & Fleet Management,Waste Collection,8403,Agency Staff,10/12/2021,Employee Related Expenditure,134375,Neighbourhoods
"4,950.36",Wysall & Thorpe Parish Council,Liabilities,Long Term Liabilities,Wysall Neighbourhood Cil,6878,Balance Sheet Exp In The Year,02/12/2021,Balance Sheet Exp In The Year,133497,Finance
"4,950.00",Tunstall Response Ltd,Neighbourhoods,Strategic Housing,Home Alarms,1137,Other Equipment/Materials,13/10/2021,Supplies & Services,132207,Public Protection
"4,950.00",Tunstall Response Ltd,Neighbourhoods,Strategic Housing,Home Alarms,1137,Other Equipment/Materials,20/12/2021,Supplies & Services,134367,Public Protection
"4,899.00",Stannah Lift Services Ltd,Capital Expenditure,Neighbourhoods,Disabled Facilities Grant,0332,Grants,30/11/2021,Supplies & Services,134047,Public Protection
"4,860.00",Via East Midlands Ltd,Communities,Planning Policy,Land Charges,1033,Other Services,16/11/2021,Supplies & Services,133263,Planning
"4,849.15",Frontline Recruitment Ltd,Neighbourhoods,Waste & Fleet Management,Waste Collection,8403,Agency Staff,12/10/2021,Employee Related Expenditure,132639,Neighbourhoods
"4,833.63","Dept For Buinsess, Energy & Ind Strategy",Assets,Current Assets,Covid19 Funding (Drs),6219,T2 Closed Dec,10/12/2021,T2 Closed Dec,133757,Finance
"4,799.75",Stage Connections Ltd,Communities,Community Development,West Bridgford Town Centre,1875,Publicity & Promotion,07/12/2021,Supplies & Services,134370,Neighbourhoods
"4,760.22",The National Leaflet Company,Finance & Corporate Services,"Performance, Repn & Comms",Performance And Reputation,4710,External Printing,10/12/2021,Supplies & Services,134254,Corporate Services
"4,750.00",Greenfields Countryside Ltd,Communities,Community Development,Environmental Promotion,1590,Legal & Professional Services,02/12/2021,Supplies & Services,134213,Public Protection
"4,713.00",Nta Monitor Limited T/A Intertek Nta,Finance & Corporate Services,Ict,It Rechargeable Costs,4722,Cyber Security,04/11/2021,Supplies & Services,132950,Corporate Services
"4,698.00",Nottinghamshire County Council,Communities,Planning Policy,Land Charges,1033,Other Services,10/12/2021,Supplies & Services,134335,Planning
"4,568.36",Frontline Recruitment Ltd,Neighbourhoods,Waste & Fleet Management,Waste Collection,8403,Agency Staff,05/10/2021,Employee Related Expenditure,131971,Neighbourhoods
"4,545.96",Sherwood Contractors Ltd,Capital Expenditure,Neighbourhoods,Disabled Facilities Grant,0332,Grants,07/12/2021,Supplies & Services,134220,Public Protection
"4,500.00",Ebers Hotel,Neighbourhoods,Strategic Housing,Homeless B&B,1110,Housing-Emergency Accommodn,22/12/2021,Supplies & Services,135356,Public Protection
"4,500.00",Ft Leisure Limited,Capital Expenditure,Transformation & Innovation,Bingham Leisure Hub,0314,Other Equipment/Materials,07/12/2021,Supplies & Services,133820,Neighbourhoods
"4,500.00",Geldards Llp,Capital Expenditure,Transformation & Innovation,Abbey Road Redevelopment,0312,Legal & Professional Services,15/12/2021,Supplies & Services,134714,Economic Growth
"4,490.18",Frontline Recruitment Ltd,Neighbourhoods,Waste & Fleet Management,Waste Collection,8403,Agency Staff,05/10/2021,Employee Related Expenditure,131697,Neighbourhoods
"4,384.33",Cash & Carry Windows,Capital Expenditure,Communities,Gamston Community Hall Enhance,0317,Responsive Works - Buildings,25/11/2021,Premises Related Expenditure,133616,Neighbourhoods
"4,357.01",Frontline Recruitment Ltd,Neighbourhoods,Waste & Fleet Management,Waste Collection,8403,Agency Staff,26/10/2021,Employee Related Expenditure,132823,Neighbourhoods
"4,345.26",Dcr Electrical Ltd,Capital Expenditure,Communities,Warm Homes On Prescription,0337,Grants,23/11/2021,Supplies & Services,133832,Neighbourhoods
"4,341.74",Gee Tee Building Services,Capital Expenditure,Neighbourhoods,Disabled Facilities Grant,0332,Grants,02/11/2021,Supplies & Services,132979,Public Protection
"4,292.69",Severn Trent Water,Neighbourhoods,Waste & Fleet Management,Tanker Services,1948,Waste Disposal,26/10/2021,Supplies & Services,132833,Neighbourhoods
"4,238.19",Frontline Recruitment Ltd,Neighbourhoods,Waste & Fleet Management,Waste Collection,8403,Agency Staff,30/11/2021,Employee Related Expenditure,133846,Neighbourhoods
"4,235.00",Cds Services,Capital Expenditure,Neighbourhoods,Disabled Facilities Grant,0332,Grants,10/12/2021,Supplies & Services,134453,Public Protection
"4,230.00",Creative Festivities Limited,Communities,Community Development,West Bridgford Town Centre,1875,Publicity & Promotion,07/12/2021,Supplies & Services,134371,Neighbourhoods
"4,215.86",Gee Tee Building Services,Capital Expenditure,Neighbourhoods,Discretionary Top-Ups Dfgs,0333,Grants,23/11/2021,Supplies & Services,133750,Public Protection
"4,127.00",Stannah Lift Services Ltd,Capital Expenditure,Neighbourhoods,Disabled Facilities Grant,0332,Grants,15/10/2021,Supplies & Services,132650,Public Protection
"4,110.95",Frontline Recruitment Ltd,Neighbourhoods,Waste & Fleet Management,Waste Collection,8403,Agency Staff,05/10/2021,Employee Related Expenditure,132380,Neighbourhoods
"4,108.00",Stannah Lift Services Ltd,Capital Expenditure,Neighbourhoods,Disabled Facilities Grant,0332,Grants,07/12/2021,Supplies & Services,134221,Public Protection
"4,050.00",Mti Technology Ltd,Finance & Corporate Services,Ict,It Rechargeable Costs,4722,Cyber Security,23/12/2021,Supplies & Services,134648,Corporate Services
"3,997.83",Frontline Recruitment Ltd,Neighbourhoods,Waste & Fleet Management,Waste Collection,8403,Agency Staff,30/11/2021,Employee Related Expenditure,133858,Neighbourhoods
"3,996.00",G2 Recruitment Solutions,Communities,Planning & Growth,Development Control,1161,Agency Staff,12/11/2021,Employee Related Expenditure,133285,Planning
"3,880.00",Haymarket Media Group,Communities,Planning & Growth,Development Control,1161,Subscriptions,23/11/2021,Supplies & Services,133336,Planning
"3,870.00",Stage Connections Ltd,Communities,Community Development,Arts & Events,1550,Projects & Activities,26/10/2021,Supplies & Services,132951,Neighbourhoods
"3,694.06",Frontline Recruitment Ltd,Neighbourhoods,Waste & Fleet Management,Waste Collection,8403,Agency Staff,12/11/2021,Employee Related Expenditure,133429,Neighbourhoods
"3,610.00",Teleware Plc,Capital Expenditure,Finance & Corporate Services,Technical Infrastructure,0603,Computer Hardware,30/11/2021,Supplies & Services,133967,Corporate Services
"3,588.97",Vivid Resourcing (G2v Recruitment Group Ltd),Communities,Planning & Growth,Development Control,1161,Agency Staff,23/12/2021,Employee Related Expenditure,135030,Planning
"3,544.85",Visions Projects Limited,Capital Expenditure,Transformation & Innovation,Rccc Premises 19/20,0376,Contractors-Third Party,20/12/2021,Third Party Payments,134600,Obsolete
"3,500.00",Fpcr Environment & Design Ltd,Neighbourhoods,Leisure Contracts & Car Parks,Edwalton Golf Courses,1400,Legal & Professional Services,26/10/2021,Supplies & Services,132488,Neighbourhoods
"3,480.64",Dcr Electrical Ltd,Capital Expenditure,Communities,Warm Homes On Prescription,0337,Grants,19/11/2021,Supplies & Services,133384,Neighbourhoods
"3,453.50",P.Waller (Decorators) Ltd,Neighbourhoods,Strategic Housing,Hostel Hound Lodge,1111,Planned Maintenance Recharge,02/11/2021,Supplies & Services,132147,Public Protection
"3,407.46",Frontline Recruitment Ltd,Neighbourhoods,Waste & Fleet Management,Waste Collection,8403,Agency Staff,12/11/2021,Employee Related Expenditure,133238,Neighbourhoods
"3,349.55",Frontline Recruitment Ltd,Neighbourhoods,Waste & Fleet Management,Waste Collection,8403,Agency Staff,10/12/2021,Employee Related Expenditure,134056,Neighbourhoods
"3,342.00",Nbc Enviroment Ltd,Transformation,Property Services,New Offices - Cotgrave,4798,Planned Maintenance Recharge,16/11/2021,Supplies & Services,133408,Economic Growth
"3,319.89",Virgin Media Business,Finance & Corporate Services,Ict,It Rechargeable Costs,4722,Maintenance Contracts - S&S,14/12/2021,Supplies & Services,134359,Corporate Services
"3,309.00",Frontline Recruitment Ltd,Neighbourhoods,Waste & Fleet Management,Waste Collection,8403,Agency Staff,15/12/2021,Employee Related Expenditure,134605,Neighbourhoods
"3,300.00",Professional Sportsturf Design (Nw) Limited,Capital Expenditure,Communities,Gresham Pitches,0280,Legal & Professional Services,14/12/2021,Supplies & Services,134242,Economic Growth
"3,274.56",Axess Systems Ltd,Finance & Corporate Services,Ict,It Rechargeable Costs,4722,Cyber Security,07/10/2021,Supplies & Services,132369,Corporate Services
"3,269.26",Edf Energy,Communities,Community Development,Gresham,8950,Electricity,15/12/2021,Premises Related Expenditure,134644,Neighbourhoods
"3,260.50",Toot Hill School,Neighbourhoods,Leisure Contracts & Car Parks,Leisure Management Contract,1795,Electricity,12/11/2021,Premises Related Expenditure,132869,Neighbourhoods
"3,225.09",The South Wolds Academy And Sixth Form,Neighbourhoods,Leisure Contracts & Car Parks,Leisure Management Contract,1795,Electricity,30/11/2021,Premises Related Expenditure,133288,Neighbourhoods
"3,200.00",Wireless Cctv Ltd,Neighbourhoods,Environmental Health,Community Safety,1598,Projects & Activities,25/11/2021,Supplies & Services,133780,Public Protection
"3,195.00",Henry Riley Llp,Capital Expenditure,Transformation & Innovation,Bingham Leisure Hub,0314,Legal & Professional Services,17/11/2021,Supplies & Services,133383,Neighbourhoods
"3,146.40",Acs Systems Uk Ltd T/A Acs Office Solutions,Capital Expenditure,Finance & Corporate Services,Technical Infrastructure,0603,Computer Hardware,19/11/2021,Supplies & Services,133196,Corporate Services
"3,062.18",Vertiv Infrastructure Limited,Finance & Corporate Services,Ict,It Rechargeable Costs,4722,Other Maintenance,12/10/2021,Supplies & Services,131846,Corporate Services
"3,045.58",Frontline Recruitment Ltd,Neighbourhoods,Waste & Fleet Management,Waste Collection,8403,Agency Staff,22/12/2021,Employee Related Expenditure,135359,Neighbourhoods
"3,000.00",Griffin Inn Plumtree Limited,Assets,Current Assets,Covid19 Funding (Drs),6219,Addnl Restrictions Grant,16/12/2021,Addnl Restrictions Grant,134806,Finance
"3,000.00",Henry Riley Llp,Capital Expenditure,Transformation & Innovation,Bingham Leisure Hub,0314,Legal & Professional Services,20/10/2021,Supplies & Services,132352,Neighbourhoods
"3,000.00",Joshua Tree Ltd,Assets,Current Assets,Covid19 Funding (Drs),6219,Addnl Restrictions Grant,16/12/2021,Addnl Restrictions Grant,134827,Finance
"3,000.00",Lady Bay Inns Ltd,Assets,Current Assets,Covid19 Funding (Drs),6219,Addnl Restrictions Grant,16/12/2021,Addnl Restrictions Grant,134883,Finance
"3,000.00",Mermaid One Ltd,Assets,Current Assets,Covid19 Funding (Drs),6219,Addnl Restrictions Grant,16/12/2021,Addnl Restrictions Grant,134979,Finance
"3,000.00",Saks Hair & Beauty,Assets,Current Assets,Covid19 Funding (Drs),6219,Addnl Restrictions Grant,16/12/2021,Addnl Restrictions Grant,134948,Finance
"3,000.00",The Beer Consortium Ltd T/A Horse & Plough,Assets,Current Assets,Covid19 Funding (Drs),6219,Addnl Restrictions Grant,16/12/2021,Addnl Restrictions Grant,134885,Finance
"3,000.00",The Black Pearl,Assets,Current Assets,Covid19 Funding (Drs),6219,Addnl Restrictions Grant,16/12/2021,Addnl Restrictions Grant,134889,Finance
"3,000.00",The Cat & Wickets Pub Company,Assets,Current Assets,Covid19 Funding (Drs),6219,Addnl Restrictions Grant,16/12/2021,Addnl Restrictions Grant,134798,Finance
"3,000.00",The Cottage Hotel Limited,Assets,Current Assets,Covid19 Funding (Drs),6219,Addnl Restrictions Grant,16/12/2021,Addnl Restrictions Grant,134952,Finance
"3,000.00",The Plough By Secret Pub Company,Assets,Current Assets,Covid19 Funding (Drs),6219,Addnl Restrictions Grant,16/12/2021,Addnl Restrictions Grant,134947,Finance
"3,000.00",The Plough Inn,Assets,Current Assets,Covid19 Funding (Drs),6219,Addnl Restrictions Grant,16/12/2021,Addnl Restrictions Grant,134845,Finance
"3,000.00",The Radcliffe Arms Ltd,Assets,Current Assets,Covid19 Funding (Drs),6219,Addnl Restrictions Grant,16/12/2021,Addnl Restrictions Grant,134809,Finance
"3,000.00",The Rancliffe Arms,Assets,Current Assets,Covid19 Funding (Drs),6219,Addnl Restrictions Grant,16/12/2021,Addnl Restrictions Grant,135015,Finance
"3,000.00",The Ruddington Arms,Assets,Current Assets,Covid19 Funding (Drs),6219,Addnl Restrictions Grant,16/12/2021,Addnl Restrictions Grant,134807,Finance
"3,000.00",Tynemill Ltd T/A Stratford Haven,Assets,Current Assets,Covid19 Funding (Drs),6219,Addnl Restrictions Grant,16/12/2021,Addnl Restrictions Grant,134884,Finance
"2,974.39",Terberg Matec Uk Limited,Neighbourhoods,Waste & Fleet Management,Fleet,8600,Contractors-Transport,02/11/2021,Transport Related Expenditure,132730,Neighbourhoods
"2,960.00",Vivid Resourcing (G2v Recruitment Group Ltd),Communities,Planning & Growth,Development Control,1161,Agency Staff,25/11/2021,Employee Related Expenditure,133716,Planning
"2,950.00",Howard Ward Associates Ltd,Transformation,Property Services,Unit 10 Moorbridge,4788,Legal & Professional Services,23/11/2021,Supplies & Services,133367,Economic Growth
"2,918.00",Browne Jacobson,Transformation,Legal,Legal Services,4701,Legal & Professional Services,05/10/2021,Supplies & Services,131778,Chief Executive Department 
"2,910.72",Capita Software Services,Finance & Corporate Services,Revenues & Benefits,Housing Benefits Admin.,1140,Other Government Grants,12/11/2021,Income,133032,Finance
"2,805.00",Sodexo Motivation Solutions Uk Ltd,Transformation,Human Resources,Human Resources,4709,Legal & Professional Services,25/11/2021,Supplies & Services,133279,Chief Executive Department 
"2,791.92",Stannah Lift Services Ltd,Capital Expenditure,Neighbourhoods,Disabled Facilities Grant,0332,Grants,09/11/2021,Supplies & Services,133318,Public Protection
"2,784.97",Prism Medical Uk Ltd,Capital Expenditure,Neighbourhoods,Disabled Facilities Grant,0332,Grants,30/11/2021,Supplies & Services,134038,Public Protection
"2,674.00",Fpcr Environment & Design Ltd,Neighbourhoods,Leisure Contracts & Car Parks,Edwalton Golf Courses,1400,Legal & Professional Services,02/11/2021,Supplies & Services,132347,Neighbourhoods
"2,667.00",Vighnesh Sawant,Assets,Current Assets,Covid19 Funding (Drs),6219,Addnl Restrictions Grant,07/10/2021,Addnl Restrictions Grant,132545,Finance
"2,667.00",Vighnesh Sawant,Assets,Current Assets,Covid19 Funding (Drs),6219,Addnl Restrictions Grant,07/10/2021,Addnl Restrictions Grant,132546,Finance
"2,646.00",Carlton Design & Fabrication,Capital Expenditure,Neighbourhoods,Disabled Facilities Grant,0332,Grants,20/10/2021,Supplies & Services,132745,Public Protection
"2,640.00",Fiona Herbert Catering,Communities,Community Development,Arts & Events,1550,Projects & Activities,20/12/2021,Supplies & Services,135385,Neighbourhoods
"2,597.00",Stannah Lift Services Ltd,Capital Expenditure,Neighbourhoods,Disabled Facilities Grant,0332,Grants,09/11/2021,Supplies & Services,133341,Public Protection
"2,528.00",Dolphin Mobility East Mids Ltd,Capital Expenditure,Neighbourhoods,Disabled Facilities Grant,0332,Grants,15/10/2021,Supplies & Services,132663,Public Protection
"2,500.00",Browne Jacobson,Transformation,Legal,Legal Services,4701,Other Income,23/11/2021,Income,133412,Chief Executive Department 
"2,500.00",Cp Viability Ltd,Communities,Planning & Growth,Development Control,1161,Legal & Professional Services,22/12/2021,Supplies & Services,134437,Planning
"2,442.00",Nottinghamshire County Council,Communities,Planning Policy,Land Charges,1033,Other Services,07/10/2021,Supplies & Services,131933,Planning
"2,440.00",Branch And Bloom Gardening,Communities,Community Development,Health Development,1058,Grants,30/11/2021,Supplies & Services,133600,Neighbourhoods
"2,430.00",Inform Cpi Ltd,Finance & Corporate Services,Revenues & Benefits,Nndr,1038,Legal & Professional Services,10/12/2021,Supplies & Services,134377,Finance
"2,408.00",Thorn Baker Ltd,Neighbourhoods,Waste & Fleet Management,Waste Collection,8403,Agency Staff,26/10/2021,Employee Related Expenditure,132251,Neighbourhoods
"2,408.00",Thorn Baker Ltd,Neighbourhoods,Waste & Fleet Management,Waste Collection,8403,Agency Staff,10/12/2021,Employee Related Expenditure,133937,Neighbourhoods
"2,408.00",Thorn Baker Ltd,Neighbourhoods,Waste & Fleet Management,Waste Collection,8403,Agency Staff,10/12/2021,Employee Related Expenditure,134387,Neighbourhoods
"2,402.17",Venesta Washroom Systems Ltd,Capital Expenditure,Communities,Lutterell Hall Enhancements,0326,Contractors-Third Party,10/12/2021,Third Party Payments,134040,Economic Growth
"2,400.00",The Crown Estate C/O Carter Jonas,Capital Expenditure,Transformation & Innovation,Bingham Leisure Hub,0314,Legal & Professional Services,14/12/2021,Supplies & Services,134343,Neighbourhoods
"2,397.60",Thorn Baker Ltd,Neighbourhoods,Waste & Fleet Management,Waste Collection,8403,Agency Staff,02/11/2021,Employee Related Expenditure,133015,Neighbourhoods
"2,397.60",Thorn Baker Ltd,Neighbourhoods,Waste & Fleet Management,Waste Collection,8403,Agency Staff,02/11/2021,Employee Related Expenditure,133111,Neighbourhoods
"2,397.60",Thorn Baker Ltd,Neighbourhoods,Waste & Fleet Management,Waste Collection,8403,Agency Staff,12/11/2021,Employee Related Expenditure,133381,Neighbourhoods
"2,394.83",Mewies Engineering Consultants Ltd,Neighbourhoods,Leisure Contracts & Car Parks,Edwalton Golf Courses,1400,Legal & Professional Services,05/10/2021,Supplies & Services,131515,Neighbourhoods
"2,374.00",Browne Jacobson,Capital Expenditure,Transformation & Innovation,The Crematorium,0684,Legal & Professional Services,30/11/2021,Supplies & Services,133414,Neighbourhoods
"2,373.80",William Saunders,Capital Expenditure,Transformation & Innovation,Bingham Leisure Hub,0314,Contractors-Third Party,20/12/2021,Third Party Payments,135032,Neighbourhoods
"2,362.80",Sodexo Motivation Solutions Uk Ltd,Transformation,Human Resources,Human Resources,4709,Legal & Professional Services,12/10/2021,Supplies & Services,132156,Chief Executive Department 
"2,350.00",Streetwise Environmental Ltd           1,Capital Expenditure,Transformation & Innovation,The Crematorium,0684,Programme Budget,12/10/2021,Premises Related Expenditure,132232,Neighbourhoods
"2,319.38",Maltby & Company,Capital Expenditure,Communities,Gresham Pavilion,0347,Contractors-Supplies & Servs,15/10/2021,Supplies & Services,132732,Neighbourhoods
"2,300.00",T&S Heating Ltd,Capital Expenditure,Neighbourhoods,Disabled Facilities Grant,0332,Grants,07/12/2021,Supplies & Services,134222,Public Protection
"2,285.00",Gedling Borough Council,Finance & Corporate Services,Ict,It Rechargeable Costs,4722,Maintenance Contracts - S&S,04/11/2021,Supplies & Services,133060,Corporate Services
"2,280.00",Cash & Carry Windows,Capital Expenditure,Communities,Extnal Door/Window Upgrades,0505,Contractors-Third Party,10/12/2021,Third Party Payments,134080,Economic Growth
"2,272.90",Procoat Uk Ltd,Capital Expenditure,Communities,Gamston Community Hall Enhance,0317,Contractors-Third Party,25/11/2021,Third Party Payments,133292,Neighbourhoods
"2,254.44",Sse Payment Centre,Transformation,Property Services,The Point,1886,Electricity,25/11/2021,Premises Related Expenditure,133071,Economic Growth
"2,250.00",Park Avenue,Communities,Planning & Growth,Development Control,1161,Agency Staff,25/11/2021,Employee Related Expenditure,133748,Planning
"2,250.00",Park Avenue,Communities,Planning & Growth,Development Control,1161,Agency Staff,02/12/2021,Employee Related Expenditure,133940,Planning
"2,250.00",Park Avenue,Communities,Planning & Growth,Development Control,1161,Agency Staff,07/12/2021,Employee Related Expenditure,134234,Planning
"2,250.00",Park Avenue,Communities,Planning & Growth,Development Control,1161,Agency Staff,14/12/2021,Employee Related Expenditure,134439,Planning
"2,250.00",Park Avenue,Communities,Planning & Growth,Development Control,1161,Agency Staff,22/12/2021,Employee Related Expenditure,134720,Planning
"2,245.00",Arc Industrial Cladding & Roofing Ltd,Neighbourhoods,Leisure Contracts & Car Parks,Leisure Management Contract,1795,Responsive Works - Buildings,12/10/2021,Premises Related Expenditure,132323,Neighbourhoods
"2,240.00",P J Sealants Limited,Capital Expenditure,Communities,Gresham Pavilion,0347,Contractors-Supplies & Servs,04/11/2021,Supplies & Services,131419,Neighbourhoods
"2,235.15",Stage Connections Ltd,Communities,Community Development,Arts & Events,1550,Projects & Activities,29/10/2021,Supplies & Services,133062,Neighbourhoods
"2,206.08",Acs Systems Uk Ltd T/A Acs Office Solutions,Finance & Corporate Services,Ict,It Rechargeable Costs,4722,Cyber Security,07/10/2021,Supplies & Services,131241,Corporate Services
"2,170.00",Inform Cpi Ltd,Finance & Corporate Services,Revenues & Benefits,Nndr,1038,Legal & Professional Services,07/10/2021,Supplies & Services,132344,Finance
"2,164.42",Aumas Limited,Capital Expenditure,Neighbourhoods,Discretionary Top-Ups Dfgs,0333,Grants,23/11/2021,Supplies & Services,133824,Public Protection
"2,161.72",Toot Hill School,Neighbourhoods,Leisure Contracts & Car Parks,Leisure Management Contract,1795,Gas,20/10/2021,Premises Related Expenditure,132480,Neighbourhoods
"2,160.00",G2 Recruitment Solutions,Communities,Planning & Growth,Development Control,1161,Agency Staff,02/12/2021,Employee Related Expenditure,133478,Planning
"2,145.83",Streetwise Environmental Ltd           1,Capital Expenditure,Transformation & Innovation,Bingham Leisure Hub,0314,Contractors-Third Party,25/11/2021,Third Party Payments,133715,Neighbourhoods
"2,118.00",Via East Midlands Ltd,Communities,Community Development,Gamston Community Hall,8992,Planned Maintenance Recharge,05/10/2021,Supplies & Services,131598,Neighbourhoods
"2,117.50",William Saunders,Capital Expenditure,Transformation & Innovation,Bingham Leisure Hub,0314,Contractors-Third Party,20/12/2021,Third Party Payments,134623,Neighbourhoods
"2,110.71",Macildowie Associates Limited,Finance & Corporate Services,Financial Services,Financial Services,4705,Agency Staff,15/10/2021,Employee Related Expenditure,132661,Finance
"2,110.71",Macildowie Associates Limited,Finance & Corporate Services,Financial Services,Financial Services,4705,Agency Staff,29/10/2021,Employee Related Expenditure,132865,Finance
"2,110.71",Macildowie Associates Limited,Finance & Corporate Services,Financial Services,Financial Services,4705,Agency Staff,12/11/2021,Employee Related Expenditure,133061,Finance
"2,110.71",Macildowie Associates Limited,Finance & Corporate Services,Financial Services,Financial Services,4705,Agency Staff,12/11/2021,Employee Related Expenditure,133269,Finance
"2,110.71",Macildowie Associates Limited,Finance & Corporate Services,Financial Services,Financial Services,4705,Agency Staff,19/11/2021,Employee Related Expenditure,133483,Finance
"2,110.71",Macildowie Associates Limited,Finance & Corporate Services,Financial Services,Financial Services,4705,Agency Staff,19/11/2021,Employee Related Expenditure,133645,Finance
"2,110.71",Macildowie Associates Limited,Finance & Corporate Services,Financial Services,Financial Services,4705,Agency Staff,02/12/2021,Employee Related Expenditure,133931,Finance
"2,107.05",Horizon Landscapes Ltd,Communities,Community Development,Environmental Promotion,1590,Legal & Professional Services,02/12/2021,Supplies & Services,133513,Public Protection
"2,086.46",Nottinghamshire County Council,Neighbourhoods,Leisure Contracts & Car Parks,Leisure Management Contract,1795,Grounds Maintenance,20/10/2021,Premises Related Expenditure,132395,Neighbourhoods
"2,083.01",Macildowie Associates Limited,Finance & Corporate Services,Financial Services,Financial Services,4705,Agency Staff,12/10/2021,Employee Related Expenditure,132494,Finance
"2,067.29",Notts County Cricket Club,Finance & Corporate Services,Democratic Services,Mayoral Expenses,1001,Catering Provisions,22/12/2021,Supplies & Services,134705,Corporate Services
"2,062.00",Mk Door Systems Ltd T/A Style Midlands,Transformation,Property Services,Arena Civic Centre,4718,Service Maintenance Contracts,05/10/2021,Premises Related Expenditure,132329,Economic Growth
"2,000.00",24 Central Avenue,Assets,Current Assets,Covid19 Funding (Drs),6219,Addnl Restrictions Grant,16/12/2021,Addnl Restrictions Grant,134897,Finance
"2,000.00",Baresca Tapas Limited T/A Escabeche,Assets,Current Assets,Covid19 Funding (Drs),6219,Addnl Restrictions Grant,16/12/2021,Addnl Restrictions Grant,134920,Finance
"2,000.00",Charde Oriental Restaurant,Assets,Current Assets,Covid19 Funding (Drs),6219,Addnl Restrictions Grant,16/12/2021,Addnl Restrictions Grant,134891,Finance
"2,000.00",Great Northern Refinery Ltd.,Assets,Current Assets,Covid19 Funding (Drs),6219,Addnl Restrictions Grant,16/12/2021,Addnl Restrictions Grant,134803,Finance
"2,000.00",Hillary And Scott Ltd,Assets,Current Assets,Covid19 Funding (Drs),6219,Addnl Restrictions Grant,16/12/2021,Addnl Restrictions Grant,134924,Finance
"2,000.00",Ktmrestaurant Ltd T/A Mewar Haveli,Assets,Current Assets,Covid19 Funding (Drs),6219,Addnl Restrictions Grant,16/12/2021,Addnl Restrictions Grant,134926,Finance
"2,000.00",No5 Chambers,Communities,Planning & Growth,Development Control,1161,Legal & Professional Services,30/11/2021,Supplies & Services,133848,Planning
"2,000.00",Phenomenal Fireworks Ltd,Communities,Community Development,West Bridgford Town Centre,1875,Publicity & Promotion,30/11/2021,Supplies & Services,134087,Neighbourhoods
"2,000.00",Phillip David Maxwell,Assets,Current Assets,Covid19 Funding (Drs),6219,Addnl Restrictions Grant,16/12/2021,Addnl Restrictions Grant,134978,Finance
"2,000.00",Pitchbooking Limited,Communities,Community Development,Gresham,8950,Contractors-Supplies & Servs,16/11/2021,Supplies & Services,133433,Neighbourhoods
"2,000.00",Spencers Of Car Colston Ltd T/A The Royal Oak,Assets,Current Assets,Covid19 Funding (Drs),6219,Addnl Restrictions Grant,16/12/2021,Addnl Restrictions Grant,134977,Finance
"2,000.00",Team Netsol Limited,Finance & Corporate Services,Ict,It Rechargeable Costs,4722,Maintenance Contracts - S&S,10/12/2021,Supplies & Services,133325,Corporate Services
"2,000.00",The Martin Arms Inn,Assets,Current Assets,Covid19 Funding (Drs),6219,Addnl Restrictions Grant,16/12/2021,Addnl Restrictions Grant,134823,Finance
"2,000.00",The Pub People Company Ltd,Assets,Current Assets,Covid19 Funding (Drs),6219,Addnl Restrictions Grant,16/12/2021,Addnl Restrictions Grant,134985,Finance
"2,000.00",Waterside Bar Kitchen,Assets,Current Assets,Covid19 Funding (Drs),6219,Addnl Restrictions Grant,16/12/2021,Addnl Restrictions Grant,134787,Finance
"2,000.00",Yb Central Ltd,Assets,Current Assets,Covid19 Funding (Drs),6219,Addnl Restrictions Grant,16/12/2021,Addnl Restrictions Grant,134898,Finance
"1,998.00",G2 Recruitment Solutions,Communities,Planning & Growth,Development Control,1161,Agency Staff,07/10/2021,Employee Related Expenditure,132324,Planning
"1,998.00",G2 Recruitment Solutions,Communities,Planning & Growth,Development Control,1161,Agency Staff,13/10/2021,Employee Related Expenditure,132513,Planning
"1,998.00",G2 Recruitment Solutions,Communities,Planning & Growth,Development Control,1161,Agency Staff,29/10/2021,Employee Related Expenditure,132736,Planning
"1,998.00",G2 Recruitment Solutions,Communities,Planning & Growth,Development Control,1161,Agency Staff,29/10/2021,Employee Related Expenditure,132953,Planning
"1,975.00",Event Equipment Hire,Transformation,Economic Regeneration,High Streets Safely,1881,Legal & Professional Services,20/10/2021,Supplies & Services,132615,Economic Growth
"1,973.00",Browne Jacobson,Transformation,Legal,Legal Services,4701,Legal & Professional Services,05/10/2021,Supplies & Services,131779,Chief Executive Department 
"1,968.70",Streetwise Environmental Ltd           1,Neighbourhoods,Environmental Health,Community Safety,1598,Projects & Activities,15/10/2021,Supplies & Services,132402,Public Protection
"1,962.60",Pennine Planning Limited,Communities,Planning & Growth,Development Control,1161,Training Expenses,15/10/2021,Employee Related Expenditure,132367,Planning
"1,948.81",Toot Hill School,Neighbourhoods,Leisure Contracts & Car Parks,Leisure Management Contract,1795,Gas,23/12/2021,Premises Related Expenditure,133932,Neighbourhoods
"1,935.00",Pitchbooking Limited,Communities,Community Development,Gresham,8950,Contractors-Supplies & Servs,16/11/2021,Supplies & Services,133603,Neighbourhoods
"1,925.00",Dryden Consultancy Ltd,Finance & Corporate Services,Financial Services,Financial Services,4705,Legal & Professional Services,05/10/2021,Supplies & Services,131931,Finance
"1,924.54",Edf Energy,Neighbourhoods,Leisure Contracts & Car Parks,Car Parks,1900,Electricity,10/12/2021,Premises Related Expenditure,134251,Neighbourhoods
"1,905.71",Sse Payment Centre,Transformation,Customer Services,Customer Services,4807,Electricity,12/11/2021,Premises Related Expenditure,133268,Corporate Services
"1,900.00",Smoothwall Ltd,Finance & Corporate Services,Ict,It Rechargeable Costs,4722,Cyber Security,12/10/2021,Supplies & Services,132342,Corporate Services
"1,890.00",Ludlow Hill Mot Centre,Neighbourhoods,Environmental Health,Hackney Carriage/Private Hire,1031,Contractors-Transport,02/12/2021,Transport Related Expenditure,134210,Public Protection
"1,876.83",A.T Alarms,Transformation,Customer Services,Customer Services,4807,Service Maintenance Contracts,07/12/2021,Premises Related Expenditure,134062,Corporate Services
"1,873.50",Tunstall Response Ltd,Neighbourhoods,Strategic Housing,Home Alarms,1137,Other Equipment/Materials,30/11/2021,Supplies & Services,133516,Public Protection
"1,870.50",Weightmans Llp,Neighbourhoods,Leisure Contracts & Car Parks,Leisure Management Contract,1795,Legal & Professional Services,12/11/2021,Supplies & Services,133491,Neighbourhoods
"1,838.16",Thorn Baker Ltd,Neighbourhoods,Waste & Fleet Management,Waste Collection,8403,Agency Staff,15/12/2021,Employee Related Expenditure,134595,Neighbourhoods
"1,835.22",Acs Systems Uk Ltd T/A Acs Office Solutions,Finance & Corporate Services,Ict,It Rechargeable Costs,4722,Other Peripherals,07/12/2021,Supplies & Services,133736,Corporate Services
"1,830.15",Acs Systems Uk Ltd T/A Acs Office Solutions,Finance & Corporate Services,Ict,It Rechargeable Costs,4722,Other Peripherals,14/12/2021,Supplies & Services,134045,Corporate Services
"1,800.00",Park Avenue,Communities,Planning & Growth,Development Control,1161,Agency Staff,07/10/2021,Employee Related Expenditure,132241,Planning
"1,800.00",Park Avenue,Communities,Planning & Growth,Development Control,1161,Agency Staff,29/10/2021,Employee Related Expenditure,132060,Planning
"1,800.00",Park Avenue,Communities,Planning & Growth,Development Control,1161,Agency Staff,29/10/2021,Employee Related Expenditure,132766,Planning
"1,800.00",Park Avenue,Communities,Planning & Growth,Development Control,1161,Agency Staff,12/11/2021,Employee Related Expenditure,133034,Planning
"1,800.00",Park Avenue,Communities,Planning & Growth,Development Control,1161,Agency Staff,12/11/2021,Employee Related Expenditure,133304,Planning
"1,800.00",Park Avenue,Communities,Planning & Growth,Development Control,1161,Agency Staff,25/11/2021,Employee Related Expenditure,133471,Planning
"1,787.50",Rattle And Roll Limited,Communities,Community Development,Holiday Activities & Food Prog,1594,Projects & Activities,20/12/2021,Supplies & Services,135371,Neighbourhoods
"1,765.00",Geoffrey Nichols Associates,Capital Expenditure,Transformation & Innovation,Manvers Bp Roof Refurb,0315,Contractors-Third Party,20/10/2021,Third Party Payments,132405,Neighbourhoods
"1,760.00",Nbs Enterprises Ltd,Transformation,Property Services,Property Services,4713,Subscriptions,22/12/2021,Supplies & Services,134472,Economic Growth
"1,744.32",Axess Systems Ltd,Finance & Corporate Services,Ict,It Rechargeable Costs,4722,Maintenance Contracts - S&S,25/11/2021,Supplies & Services,133521,Corporate Services
"1,715.00",Browne Jacobson,Capital Income,Capital Receipts,"Sharphill, Edwalton (Wells Lan",9081,Legal & Professional Services,20/10/2021,Supplies & Services,132258,Neighbourhoods
"1,705.00",Westcotes House Ltd,Neighbourhoods,Strategic Housing,Homeless B&B,1110,Housing-Emergency Accommodn,05/10/2021,Supplies & Services,132209,Public Protection
"1,705.00",Westcotes House Ltd,Neighbourhoods,Strategic Housing,Homeless B&B,1110,Housing-Emergency Accommodn,05/10/2021,Supplies & Services,132260,Public Protection
"1,693.20",Reach Publishing Services Limited,Communities,Planning & Growth,Development Control,1161,Advertising,10/12/2021,Supplies & Services,134223,Planning
"1,689.10",Macildowie Associates Limited,Finance & Corporate Services,Financial Services,Financial Services,4705,Agency Staff,10/12/2021,Employee Related Expenditure,134197,Finance
"1,687.72",Acs Systems Uk Ltd T/A Acs Office Solutions,Finance & Corporate Services,Ict,It Rechargeable Costs,4722,Other Peripherals,07/10/2021,Supplies & Services,131241,Corporate Services
"1,668.98",Maltby & Company,Capital Expenditure,Communities,Gresham Pavilion,0347,Contractors-Supplies & Servs,15/10/2021,Supplies & Services,132733,Neighbourhoods
"1,668.81",Prestige Air Technology Ltd,Transformation,Property Services,Arena Civic Centre,4718,Service Maintenance Contracts,05/10/2021,Premises Related Expenditure,131970,Economic Growth
"1,665.64",Candor Care Limited - Accounts Department,Capital Expenditure,Neighbourhoods,Discretionary Top-Ups Dfgs,0333,Grants,30/11/2021,Supplies & Services,134036,Public Protection
"1,661.00",Obam Lift Services Ltd,Capital Expenditure,Neighbourhoods,Disabled Facilities Grant,0332,Grants,02/11/2021,Supplies & Services,132977,Public Protection
"1,654.34",Mewies Engineering Consultants Ltd,Neighbourhoods,Leisure Contracts & Car Parks,Edwalton Golf Courses,1400,Legal & Professional Services,05/10/2021,Supplies & Services,131516,Neighbourhoods
"1,650.00",Westcotes House Ltd,Neighbourhoods,Strategic Housing,Homeless B&B,1110,Housing-Emergency Accommodn,29/10/2021,Supplies & Services,132747,Public Protection
"1,638.00",Arc Industrial Cladding & Roofing Ltd,Transformation,Property Services,Hollygate Lane Ph2 (Manvers),1896,Planned Maintenance Recharge,20/12/2021,Supplies & Services,134479,Economic Growth
"1,625.00",Jne Security Ltd,Neighbourhoods,Environmental Health,Community Safety,1598,Projects & Activities,25/11/2021,Supplies & Services,133280,Public Protection
"1,618.50",Reach Publishing Services Limited,Communities,Planning & Growth,Development Control,1161,Advertising,10/12/2021,Supplies & Services,134465,Planning
"1,605.75",P.Waller (Decorators) Ltd,Capital Expenditure,Communities,Gresham Pavilion,0347,Contractors-Third Party,12/11/2021,Third Party Payments,133307,Neighbourhoods
"1,600.00",Creative Festivities Limited,Communities,Community Development,Arts & Events,1550,Projects & Activities,07/12/2021,Supplies & Services,134372,Neighbourhoods
"1,600.00",Equation Training,Neighbourhoods,Environmental Health,Community Safety,1598,Projects & Activities,12/11/2021,Supplies & Services,133421,Public Protection
"1,598.40",Thorn Baker Ltd,Neighbourhoods,Waste & Fleet Management,Waste Collection,8403,Agency Staff,26/10/2021,Employee Related Expenditure,132825,Neighbourhoods
"1,598.40",Thorn Baker Ltd,Neighbourhoods,Waste & Fleet Management,Waste Collection,8403,Agency Staff,30/11/2021,Employee Related Expenditure,133524,Neighbourhoods
"1,598.40",Thorn Baker Ltd,Neighbourhoods,Waste & Fleet Management,Waste Collection,8403,Agency Staff,30/11/2021,Employee Related Expenditure,133778,Neighbourhoods
"1,598.40",Thorn Baker Ltd,Neighbourhoods,Waste & Fleet Management,Waste Collection,8403,Agency Staff,10/12/2021,Employee Related Expenditure,134054,Neighbourhoods
"1,577.35",The South Wolds Academy And Sixth Form,Neighbourhoods,Leisure Contracts & Car Parks,Leisure Management Contract,1795,Water Charges,20/10/2021,Premises Related Expenditure,131844,Neighbourhoods
"1,566.03",Vip System Limited,Neighbourhoods,Environmental Health,Hackney Carriage/Private Hire,1031,Other Equipment/Materials,12/11/2021,Supplies & Services,133239,Public Protection
"1,550.00",Et Planning Ltd,Communities,Planning & Growth,Development Control,1161,Legal & Professional Services,10/12/2021,Supplies & Services,134194,Planning
"1,540.66",Carlton Design & Fabrication,Capital Expenditure,Neighbourhoods,Disabled Facilities Grant,0332,Grants,16/11/2021,Supplies & Services,133468,Public Protection
"1,534.00",Hiring Wizard,Communities,Planning & Growth,Development Control,1161,Employee Advertising,26/10/2021,Employee Related Expenditure,132759,Planning
"1,530.84",Bottomline Technologies Limited,Finance & Corporate Services,Ict,It Rechargeable Costs,4722,Maintenance Contracts - S&S,02/12/2021,Supplies & Services,132856,Corporate Services
"1,523.00",East Midlands Chamber,Transformation,Economic Regeneration,Economic Development,1887,Other Services,02/11/2021,Supplies & Services,132203,Economic Growth
"1,520.00",Vivid Resourcing (G2v Recruitment Group Ltd),Communities,Planning & Growth,Development Control,1161,Agency Staff,22/12/2021,Employee Related Expenditure,133951,Planning
"1,500.00",Ashmores Restaurant,Assets,Current Assets,Covid19 Funding (Drs),6219,Addnl Restrictions Grant,16/12/2021,Addnl Restrictions Grant,135008,Finance
"1,500.00",Beauty Temple (Nottingham) Limited,Assets,Current Assets,Covid19 Funding (Drs),6219,Addnl Restrictions Grant,16/12/2021,Addnl Restrictions Grant,134838,Finance
"1,500.00",Blotts Country Club,Assets,Current Assets,Covid19 Funding (Drs),6219,Addnl Restrictions Grant,16/12/2021,Addnl Restrictions Grant,134980,Finance
"1,500.00",Chubby Pub Company Ltd,Assets,Current Assets,Covid19 Funding (Drs),6219,Addnl Restrictions Grant,16/12/2021,Addnl Restrictions Grant,134841,Finance
"1,500.00",Cornerstone Barristers,Transformation,Legal,Legal Services,4701,Other Income,30/11/2021,Income,133964,Chief Executive Department 
"1,500.00",Crystal Lillies Restaurant,Assets,Current Assets,Covid19 Funding (Drs),6219,Addnl Restrictions Grant,16/12/2021,Addnl Restrictions Grant,134890,Finance
"1,500.00",Cuzina Limited,Assets,Current Assets,Covid19 Funding (Drs),6219,Addnl Restrictions Grant,16/12/2021,Addnl Restrictions Grant,134831,Finance
"1,500.00",Delhi Nights,Assets,Current Assets,Covid19 Funding (Drs),6219,Addnl Restrictions Grant,16/12/2021,Addnl Restrictions Grant,134965,Finance
"1,500.00",Elysian Parlour,Assets,Current Assets,Covid19 Funding (Drs),6219,Addnl Restrictions Grant,16/12/2021,Addnl Restrictions Grant,134815,Finance
"1,500.00",Farm Eco Community Care Limited,Communities,Community Development,Health Development,1058,Grants,05/10/2021,Supplies & Services,131853,Neighbourhoods
"1,500.00",Frances Russell Ta White Rabbit Teahouse,Assets,Current Assets,Covid19 Funding (Drs),6219,Addnl Restrictions Grant,16/12/2021,Addnl Restrictions Grant,134905,Finance
"1,500.00",Good Table & Cheer Ltd,Assets,Current Assets,Covid19 Funding (Drs),6219,Addnl Restrictions Grant,16/12/2021,Addnl Restrictions Grant,134989,Finance
"1,500.00",Great Northern Bars Ltd,Assets,Current Assets,Covid19 Funding (Drs),6219,Addnl Restrictions Grant,16/12/2021,Addnl Restrictions Grant,134782,Finance
"1,500.00",Link Treasury Services Ltd,Finance & Corporate Services,Democratic Services,Members Services,1000,Members - Training,23/12/2021,Supplies & Services,134655,Corporate Services
"1,500.00",Lovely Local Ltd,Assets,Current Assets,Covid19 Funding (Drs),6219,Addnl Restrictions Grant,16/12/2021,Addnl Restrictions Grant,135006,Finance
"1,500.00",Number Sixteen,Assets,Current Assets,Covid19 Funding (Drs),6219,Addnl Restrictions Grant,16/12/2021,Addnl Restrictions Grant,134922,Finance
"1,500.00",Paklands Holdings Ltd,Assets,Current Assets,Covid19 Funding (Drs),6219,Addnl Restrictions Grant,16/12/2021,Addnl Restrictions Grant,134969,Finance
"1,500.00",Really Good Pubs Ltd,Assets,Current Assets,Covid19 Funding (Drs),6219,Addnl Restrictions Grant,16/12/2021,Addnl Restrictions Grant,134786,Finance
"1,500.00",Shapers2018,Assets,Current Assets,Covid19 Funding (Drs),6219,Addnl Restrictions Grant,16/12/2021,Addnl Restrictions Grant,134843,Finance
"1,500.00",Soothe Limited,Assets,Current Assets,Covid19 Funding (Drs),6219,Addnl Restrictions Grant,16/12/2021,Addnl Restrictions Grant,134818,Finance
"1,500.00",Tailor,Assets,Current Assets,Covid19 Funding (Drs),6219,Addnl Restrictions Grant,16/12/2021,Addnl Restrictions Grant,134899,Finance
"1,500.00",The Atrium Bar And Kitchen Ltd,Assets,Current Assets,Covid19 Funding (Drs),6219,Addnl Restrictions Grant,16/12/2021,Addnl Restrictions Grant,134813,Finance
"1,500.00",The Frame Breakers (H&C Pub Co),Assets,Current Assets,Covid19 Funding (Drs),6219,Addnl Restrictions Grant,16/12/2021,Addnl Restrictions Grant,134819,Finance
"1,500.00",The Parlour,Assets,Current Assets,Covid19 Funding (Drs),6219,Addnl Restrictions Grant,16/12/2021,Addnl Restrictions Grant,134790,Finance
"1,500.00",The Pub People Company Ltd,Assets,Current Assets,Covid19 Funding (Drs),6219,Addnl Restrictions Grant,16/12/2021,Addnl Restrictions Grant,134983,Finance
"1,500.00",The Pub People Company Ltd,Assets,Current Assets,Covid19 Funding (Drs),6219,Addnl Restrictions Grant,16/12/2021,Addnl Restrictions Grant,134986,Finance
"1,500.00",The Real Salon,Assets,Current Assets,Covid19 Funding (Drs),6219,Addnl Restrictions Grant,16/12/2021,Addnl Restrictions Grant,134824,Finance
"1,500.00",The Unicorns Head,Assets,Current Assets,Covid19 Funding (Drs),6219,Addnl Restrictions Grant,16/12/2021,Addnl Restrictions Grant,134842,Finance
"1,500.00",Three Crowns,Assets,Current Assets,Covid19 Funding (Drs),6219,Addnl Restrictions Grant,16/12/2021,Addnl Restrictions Grant,134991,Finance
"1,500.00",Tipsy Trex Ltd,Assets,Current Assets,Covid19 Funding (Drs),6219,Addnl Restrictions Grant,16/12/2021,Addnl Restrictions Grant,134835,Finance
"1,500.00",Venezia Catering Ltd,Assets,Current Assets,Covid19 Funding (Drs),6219,Addnl Restrictions Grant,16/12/2021,Addnl Restrictions Grant,134892,Finance
"1,500.00",Victoria Tavern,Assets,Current Assets,Covid19 Funding (Drs),6219,Addnl Restrictions Grant,16/12/2021,Addnl Restrictions Grant,134789,Finance
"1,500.00",Vijay Marwaha And Tripta Marwaha,Assets,Current Assets,Covid19 Funding (Drs),6219,Addnl Restrictions Grant,16/12/2021,Addnl Restrictions Grant,134974,Finance
"1,500.00",Vivid Resourcing (G2v Recruitment Group Ltd),Communities,Planning & Growth,Development Control,1161,Agency Staff,14/12/2021,Employee Related Expenditure,134244,Planning
"1,500.00",Vivid Resourcing (G2v Recruitment Group Ltd),Communities,Planning & Growth,Development Control,1161,Agency Staff,23/12/2021,Employee Related Expenditure,135031,Planning
"1,500.00",Wysall Plough Limited,Assets,Current Assets,Covid19 Funding (Drs),6219,Addnl Restrictions Grant,16/12/2021,Addnl Restrictions Grant,135000,Finance
"1,500.00",Yjr Bridgford Ltd,Assets,Current Assets,Covid19 Funding (Drs),6219,Addnl Restrictions Grant,16/12/2021,Addnl Restrictions Grant,134956,Finance
"1,496.00",Parkwood Community Leisure,Neighbourhoods,Leisure Contracts & Car Parks,Leisure Management Contract,1795,D.B.S Checks - Employees,12/11/2021,Employee Related Expenditure,133057,Neighbourhoods
"1,495.00",Arc Industrial Cladding & Roofing Ltd,Capital Expenditure,Neighbourhoods,Blc Enhancements,0417,Contractors-Third Party,19/11/2021,Third Party Payments,133720,Economic Growth
"1,490.94",Arden Winch & Co Ltd,Neighbourhoods,Waste & Fleet Management,Waste Collection,8403,Other Equipment/Materials,23/12/2021,Supplies & Services,135035,Neighbourhoods
"1,480.00",Vivid Resourcing (G2v Recruitment Group Ltd),Communities,Planning & Growth,Development Control,1161,Agency Staff,07/10/2021,Employee Related Expenditure,132148,Planning
"1,480.00",Vivid Resourcing (G2v Recruitment Group Ltd),Communities,Planning & Growth,Development Control,1161,Agency Staff,13/10/2021,Employee Related Expenditure,132515,Planning
"1,480.00",Vivid Resourcing (G2v Recruitment Group Ltd),Communities,Planning & Growth,Development Control,1161,Agency Staff,13/10/2021,Employee Related Expenditure,132645,Planning
"1,480.00",Vivid Resourcing (G2v Recruitment Group Ltd),Communities,Planning & Growth,Development Control,1161,Agency Staff,29/10/2021,Employee Related Expenditure,132738,Planning
"1,480.00",Vivid Resourcing (G2v Recruitment Group Ltd),Communities,Planning & Growth,Development Control,1161,Agency Staff,04/11/2021,Employee Related Expenditure,132971,Planning
"1,480.00",Vivid Resourcing (G2v Recruitment Group Ltd),Communities,Planning & Growth,Development Control,1161,Agency Staff,09/11/2021,Employee Related Expenditure,133278,Planning
"1,480.00",Vivid Resourcing (G2v Recruitment Group Ltd),Communities,Planning & Growth,Development Control,1161,Agency Staff,12/11/2021,Employee Related Expenditure,133092,Planning
"1,480.00",Vivid Resourcing (G2v Recruitment Group Ltd),Communities,Planning & Growth,Development Control,1161,Agency Staff,14/12/2021,Employee Related Expenditure,134480,Planning
"1,475.00",C A Wood T/A Orange Wood Design,Finance & Corporate Services,"Performance, Repn & Comms",Performance And Reputation,4710,Legal & Professional Services,29/10/2021,Supplies & Services,133122,Corporate Services
"1,470.00",Dryden Consultancy Ltd,Finance & Corporate Services,Financial Services,Financial Services,4705,Legal & Professional Services,20/10/2021,Supplies & Services,132413,Finance
"1,464.00",Poly Graphics Ltd,Finance & Corporate Services,"Performance, Repn & Comms",Performance And Reputation,4710,External Printing,16/11/2021,Supplies & Services,133118,Corporate Services
"1,457.69",Virgin Media Business,Capital Expenditure,Finance & Corporate Services,Technical Infrastructure,0603,Computer Hardware,14/12/2021,Supplies & Services,134359,Corporate Services
"1,449.00",British Parking Association,Neighbourhoods,Leisure Contracts & Car Parks,Car Parks,1900,Other Equipment/Materials,12/10/2021,Supplies & Services,132217,Neighbourhoods
"1,440.00",Ludlow Hill Mot Centre,Neighbourhoods,Environmental Health,Hackney Carriage/Private Hire,1031,Contractors-Transport,30/11/2021,Transport Related Expenditure,134079,Public Protection
"1,437.05",Service Level Management Ltd,Transformation,Bsu,Central Mail,4871,Postages,16/11/2021,Supplies & Services,132848,Chief Executive Department 
"1,430.00",Westcotes House Ltd,Neighbourhoods,Strategic Housing,Homeless B&B,1110,Housing-Emergency Accommodn,29/10/2021,Supplies & Services,132744,Public Protection
"1,414.00",Print Image Network Ltd,Finance & Corporate Services,Democratic Services,Borough Council Elections,1021,External Printing,04/11/2021,Supplies & Services,132959,Chief Executive Department 
"1,408.61",Service Level Management Ltd,Transformation,Bsu,Central Mail,4871,Postages,20/10/2021,Supplies & Services,132041,Chief Executive Department 
"1,405.50",Buxtons Forestry & Garden Equipment Suppliers,Communities,Community Development,Rushcliffe Country Park,1375,Purchases For Recharge,12/11/2021,Supplies & Services,132368,Neighbourhoods
"1,400.00",Inform Cpi Ltd,Finance & Corporate Services,Revenues & Benefits,Nndr,1038,Legal & Professional Services,02/11/2021,Supplies & Services,132958,Finance
"1,400.00",Trent Valley Plumbing & Build,Neighbourhoods,Environmental Health,Work In Default,1066,Legal & Professional Services,22/12/2021,Supplies & Services,135455,Public Protection
"1,395.00",Jne Security Ltd,Neighbourhoods,Environmental Health,Community Safety,1598,Projects & Activities,15/12/2021,Supplies & Services,134523,Public Protection
"1,355.73",Vodafone Limited,Finance & Corporate Services,Ict,It Rechargeable Costs,4722,Cyber Security,05/10/2021,Supplies & Services,131989,Corporate Services
"1,355.73",Vodafone Limited,Finance & Corporate Services,Ict,It Rechargeable Costs,4722,Cyber Security,25/11/2021,Supplies & Services,133275,Corporate Services
"1,355.73",Vodafone Limited,Finance & Corporate Services,Ict,It Rechargeable Costs,4722,Cyber Security,25/11/2021,Supplies & Services,133276,Corporate Services
"1,327.80",B E Events,Communities,Community Development,Arts & Events,1550,Projects & Activities,15/12/2021,Supplies & Services,134707,Neighbourhoods
"1,322.00",Hiring Wizard,Finance & Corporate Services,Financial Services,Financial Services,4705,Employee Advertising,25/11/2021,Employee Related Expenditure,133684,Finance
"1,320.00",Park Avenue,Communities,Planning & Growth,Development Control,1161,Agency Staff,12/11/2021,Employee Related Expenditure,133386,Planning
"1,320.00",Phenomenal Fireworks Ltd,Communities,Community Development,West Bridgford Town Centre,1875,Projects & Activities,15/12/2021,Supplies & Services,133953,Neighbourhoods
"1,305.84",Thyssenkrupp Elevator Uk Limited,Transformation,Property Services,Arena Civic Centre,4718,Service Maintenance Contracts,20/10/2021,Premises Related Expenditure,132643,Economic Growth
"1,293.00",Lock It Safe Limited,Neighbourhoods,Environmental Health,Community Safety,1598,Projects & Activities,15/12/2021,Supplies & Services,134487,Public Protection
"1,275.00",Advanced Business Solutions,Capital Expenditure,Finance & Corporate Services,Applications/Apps,0605,Software,16/11/2021,Supplies & Services,133339,Corporate Services
"1,271.00",British Insulation Services,Capital Expenditure,Communities,Warm Homes On Prescription,0337,Grants,15/12/2021,Supplies & Services,134237,Neighbourhoods
"1,270.00",Inform Cpi Ltd,Finance & Corporate Services,Revenues & Benefits,Nndr,1038,Legal & Professional Services,12/10/2021,Supplies & Services,132591,Finance
"1,269.00",Trent Valley Plumbing & Build,Capital Expenditure,Neighbourhoods,Disabled Facilities Grant,0332,Grants,02/11/2021,Supplies & Services,133036,Public Protection
"1,260.00",Ps Tax,Neighbourhoods,Leisure Contracts & Car Parks,Leisure Management Contract,1795,Legal & Professional Services,19/11/2021,Supplies & Services,133327,Neighbourhoods
"1,256.60",Acs Systems Uk Ltd T/A Acs Office Solutions,Finance & Corporate Services,Ict,It Rechargeable Costs,4722,Software,05/10/2021,Supplies & Services,130607,Corporate Services
"1,255.00",Weightmans Llp,Neighbourhoods,Leisure Contracts & Car Parks,Leisure Management Contract,1795,Legal & Professional Services,15/12/2021,Supplies & Services,134451,Neighbourhoods
"1,253.29",Royal Mail Group Ltd,Transformation,Bsu,Central Mail,4871,Postages,25/11/2021,Supplies & Services,133744,Chief Executive Department 
"1,246.20",A.T Alarms,Transformation,Customer Services,Customer Services,4807,Service Maintenance Contracts,07/12/2021,Premises Related Expenditure,134061,Corporate Services
"1,245.00",Stage Connections Ltd,Transformation,Economic Regeneration,High Streets Safely,1881,Legal & Professional Services,13/10/2021,Supplies & Services,132525,Economic Growth
"1,245.00",Stage Connections Ltd,Transformation,Economic Regeneration,High Streets Safely,1881,Legal & Professional Services,20/10/2021,Supplies & Services,132526,Economic Growth
"1,236.35",Real Asset Management,Finance & Corporate Services,Ict,It Rechargeable Costs,4722,Maintenance Contracts - S&S,17/11/2021,Supplies & Services,132206,Corporate Services
"1,227.28",Acs Systems Uk Ltd T/A Acs Office Solutions,Capital Expenditure,Finance & Corporate Services,Ict Replacement Programme,0592,Computer Hardware,07/10/2021,Supplies & Services,132146,Obsolete
"1,200.00",Irrv,Finance & Corporate Services,Revenues & Benefits,Revenues Ha,4704,Training Expenses,25/11/2021,Employee Related Expenditure,133466,Corporate Services
"1,200.00",Streetwise Environmental Ltd           1,Transformation,Property Services,Open Spaces & Footpaths,1290,Responsive Works - Buildings,05/10/2021,Premises Related Expenditure,132043,Economic Growth
"1,188.00",Nottinghamshire County Council,Communities,Planning Policy,Land Charges,1033,Other Services,25/11/2021,Supplies & Services,133490,Planning
"1,177.70",The Marquee Company Limited,Communities,Community Development,West Bridgford Town Centre,1875,Publicity & Promotion,30/11/2021,Supplies & Services,134088,Neighbourhoods
"1,174.17",Lyreco,Communities,Community Development,Facilities Team,4714,Cleaning Equipment/Materials,29/10/2021,Supplies & Services,132361,Neighbourhoods
"1,174.12",Royal Mail Group Ltd,Transformation,Bsu,Central Mail,4871,Postages,22/12/2021,Supplies & Services,134635,Chief Executive Department 
"1,166.00",Proactis Limited,Finance & Corporate Services,Ict,It Rechargeable Costs,4722,Maintenance Contracts - S&S,12/10/2021,Supplies & Services,132198,Corporate Services
"1,155.42",Ruddington Village Centre Partnership,Transformation,Economic Regeneration,Economic Development,1887,Legal & Professional Services,10/12/2021,Supplies & Services,133781,Economic Growth
"1,155.00",William Saunders,Capital Expenditure,Transformation & Innovation,Bingham Leisure Hub,0314,Contractors-Third Party,20/12/2021,Third Party Payments,134622,Neighbourhoods
"1,150.62",Nottingham City Council,Neighbourhoods,Waste & Fleet Management,Eastcroft Depot,4002,Olas - Nottm City Council,29/10/2021,Third Party Payments,133048,Neighbourhoods
"1,140.88",Reach Publishing Services Limited,Communities,Planning & Growth,Development Control,1161,Advertising,02/11/2021,Supplies & Services,132864,Planning
"1,130.12",Daisy Corporate Services Trading Limited,Finance & Corporate Services,Ict,Telephones,4870,Mobiles,20/12/2021,Supplies & Services,134450,Corporate Services
"1,130.00",Chevron Traffic Management,Communities,Community Development,Arts & Events,1550,Projects & Activities,16/12/2021,Supplies & Services,134232,Neighbourhoods
"1,120.50",Magpie Security Limited,Communities,Community Development,West Bridgford Town Centre,1875,Publicity & Promotion,16/12/2021,Supplies & Services,134376,Neighbourhoods
"1,120.00",Waste Investigations Support Ltd,Neighbourhoods,Environmental Health,Public Health,1127,Legal & Professional Services,07/12/2021,Supplies & Services,134355,Public Protection
"1,112.50",Professional Sportsturf Design (Nw) Limited,Capital Expenditure,Communities,Gresham Pitches,0280,Legal & Professional Services,07/10/2021,Supplies & Services,132349,Economic Growth
"1,108.95",Daisy Corporate Services Trading Limited,Finance & Corporate Services,Ict,Telephones,4870,Mobiles,20/10/2021,Supplies & Services,132487,Corporate Services
"1,100.13",Royal Mail Group Ltd,Transformation,Bsu,Central Mail,4871,Postages,07/10/2021,Supplies & Services,132220,Chief Executive Department 
"1,100.00",Chewings Services,Capital Expenditure,Communities,Gresham Pavilion,0347,Contractors-Supplies & Servs,02/11/2021,Supplies & Services,133064,Neighbourhoods
"1,095.60",Reach Publishing Services Limited,Communities,Planning & Growth,Development Control,1161,Advertising,22/12/2021,Supplies & Services,134719,Planning
"1,093.36",Calor Gas Limited,Communities,Community Development,West Park,8994,Gas,25/11/2021,Premises Related Expenditure,133742,Neighbourhoods
"1,090.96",Service Level Management Ltd,Transformation,Bsu,Central Mail,4871,Postages,16/11/2021,Supplies & Services,132857,Chief Executive Department 
"1,074.53",Print Image Network Ltd,Finance & Corporate Services,Democratic Services,Electoral Registration,1026,External Printing,20/10/2021,Supplies & Services,132483,Chief Executive Department 
"1,069.54",Acs Systems Uk Ltd T/A Acs Office Solutions,Finance & Corporate Services,Ict,It Rechargeable Costs,4722,Other Peripherals,04/11/2021,Supplies & Services,132767,Corporate Services
"1,068.55",Service Level Management Ltd,Transformation,Bsu,Central Mail,4871,Postages,16/11/2021,Supplies & Services,132851,Chief Executive Department 
"1,068.00",Broxap Ltd,Communities,Community Development,Rushcliffe Country Park,1375,Other Equipment/Materials,12/11/2021,Supplies & Services,132754,Neighbourhoods
"1,067.50",Staddon & Sons (Nottingham Ltd),Neighbourhoods,Strategic Housing,Hostel Hound Lodge,1111,Other Equipment/Materials,12/10/2021,Supplies & Services,132412,Public Protection
"1,064.00",Freeth Cartwright Llp,Transformation,Economic Regeneration,Cotgrave Precinct,1885,Legal & Professional Services,12/11/2021,Supplies & Services,133369,Economic Growth
"1,053.46",Reach Publishing Services Limited,Communities,Planning & Growth,Development Control,1161,Advertising,02/11/2021,Supplies & Services,133075,Planning
"1,045.00",Westcotes House Ltd,Neighbourhoods,Strategic Housing,Homeless B&B,1110,Housing-Emergency Accommodn,12/11/2021,Supplies & Services,133428,Public Protection
"1,045.00",Westcotes House Ltd,Neighbourhoods,Strategic Housing,Homeless B&B,1110,Housing-Emergency Accommodn,30/11/2021,Supplies & Services,133845,Public Protection
"1,029.50",Magpie Security Limited,Neighbourhoods,Environmental Health,Public Health,1127,Legal & Professional Services,19/11/2021,Supplies & Services,133290,Public Protection
"1,022.94",Smith Bros (Caer Conan) Wholesale Ltd,Capital Expenditure,Transformation & Innovation,Energy Efficiency Led Lighting,0207,Contractors-Third Party,05/10/2021,Third Party Payments,131683,Economic Growth
"1,022.72",Acs Systems Uk Ltd T/A Acs Office Solutions,Finance & Corporate Services,Ict,It Rechargeable Costs,4722,Consumables,05/10/2021,Supplies & Services,130607,Corporate Services
"1,015.08",Nottingham City Council,Neighbourhoods,Waste & Fleet Management,Eastcroft Depot,4002,Olas - Nottm City Council,23/11/2021,Third Party Payments,133879,Neighbourhoods
"1,010.00",The Marquee Company Limited,Transformation,Economic Regeneration,High Streets Safely,1881,Legal & Professional Services,04/11/2021,Supplies & Services,133262,Economic Growth
"1,009.61",Nominet Uk,Finance & Corporate Services,Ict,It Rechargeable Costs,4722,Cyber Security,16/11/2021,Supplies & Services,133264,Corporate Services
"1,002.20",Reach Publishing Services Limited,Communities,Planning & Growth,Development Control,1161,Advertising,23/11/2021,Supplies & Services,133297,Planning
"1,000.00",Anokhi Beauty Ltd,Assets,Current Assets,Covid19 Funding (Drs),6219,Addnl Restrictions Grant,16/12/2021,Addnl Restrictions Grant,134814,Finance
"1,000.00",Arrowmaker Pubs Ltd,Assets,Current Assets,Covid19 Funding (Drs),6219,Addnl Restrictions Grant,16/12/2021,Addnl Restrictions Grant,134936,Finance
"1,000.00",Aziz Khan Ltd,Assets,Current Assets,Covid19 Funding (Drs),6219,Addnl Restrictions Grant,16/12/2021,Addnl Restrictions Grant,134895,Finance
"1,000.00",Bingham Nails And Beauty Ltd,Assets,Current Assets,Covid19 Funding (Drs),6219,Addnl Restrictions Grant,16/12/2021,Addnl Restrictions Grant,134781,Finance
"1,000.00",Bombay Bridgford,Assets,Current Assets,Covid19 Funding (Drs),6219,Addnl Restrictions Grant,16/12/2021,Addnl Restrictions Grant,134921,Finance
"1,000.00",Bryer One Ltd,Assets,Current Assets,Covid19 Funding (Drs),6219,Addnl Restrictions Grant,16/12/2021,Addnl Restrictions Grant,134967,Finance
"1,000.00",Cafe Piano (Radcliffe On Trent) Ltd,Assets,Current Assets,Covid19 Funding (Drs),6219,Addnl Restrictions Grant,16/12/2021,Addnl Restrictions Grant,134968,Finance
"1,000.00",Dhaka Delhi Ltd,Assets,Current Assets,Covid19 Funding (Drs),6219,Addnl Restrictions Grant,16/12/2021,Addnl Restrictions Grant,134970,Finance
"1,000.00",Glow Tanning,Assets,Current Assets,Covid19 Funding (Drs),6219,Addnl Restrictions Grant,16/12/2021,Addnl Restrictions Grant,134909,Finance
"1,000.00",Hair At No. 10,Assets,Current Assets,Covid19 Funding (Drs),6219,Addnl Restrictions Grant,16/12/2021,Addnl Restrictions Grant,134858,Finance
"1,000.00",Heat Indian Restaurant,Assets,Current Assets,Covid19 Funding (Drs),6219,Addnl Restrictions Grant,16/12/2021,Addnl Restrictions Grant,134954,Finance
"1,000.00",Jdickson Hair Ltd,Assets,Current Assets,Covid19 Funding (Drs),6219,Addnl Restrictions Grant,16/12/2021,Addnl Restrictions Grant,134770,Finance
"1,000.00",J&J Hairdressing,Assets,Current Assets,Covid19 Funding (Drs),6219,Addnl Restrictions Grant,16/12/2021,Addnl Restrictions Grant,134990,Finance
"1,000.00",Mark Attewell,Assets,Current Assets,Covid19 Funding (Drs),6219,Addnl Restrictions Grant,16/12/2021,Addnl Restrictions Grant,134906,Finance
"1,000.00",Mrs B Patel T/A The Red Heart,Assets,Current Assets,Covid19 Funding (Drs),6219,Addnl Restrictions Grant,16/12/2021,Addnl Restrictions Grant,134829,Finance
"1,000.00",No52rr Limited,Assets,Current Assets,Covid19 Funding (Drs),6219,Addnl Restrictions Grant,16/12/2021,Addnl Restrictions Grant,134900,Finance
"1,000.00",Nottinghamshire County Council,Communities,Community Development,Environmental Promotion,1590,Subscriptions,20/10/2021,Supplies & Services,132511,Public Protection
"1,000.00",Okende Coffee Ltd,Assets,Current Assets,Covid19 Funding (Drs),6219,Addnl Restrictions Grant,16/12/2021,Addnl Restrictions Grant,134808,Finance
"1,000.00",Pento Ltd,Assets,Current Assets,Covid19 Funding (Drs),6219,Addnl Restrictions Grant,16/12/2021,Addnl Restrictions Grant,134833,Finance
"1,000.00",Pham,Assets,Current Assets,Covid19 Funding (Drs),6219,Addnl Restrictions Grant,16/12/2021,Addnl Restrictions Grant,134844,Finance
"1,000.00",Philo Mills Ltd,Assets,Current Assets,Covid19 Funding (Drs),6219,Addnl Restrictions Grant,16/12/2021,Addnl Restrictions Grant,134772,Finance
"1,000.00",Pizza Pizza Plus Ltd,Assets,Current Assets,Covid19 Funding (Drs),6219,Addnl Restrictions Grant,16/12/2021,Addnl Restrictions Grant,134961,Finance
"1,000.00",Raw Pubs Ltd,Assets,Current Assets,Covid19 Funding (Drs),6219,Addnl Restrictions Grant,16/12/2021,Addnl Restrictions Grant,134925,Finance
"1,000.00",Rural Retailers Ltd,Transformation,Economic Regeneration,Bingham Market Stalls,1880,Legal & Professional Services,05/10/2021,Supplies & Services,132407,Economic Growth
"1,000.00",Sarsfield'S Chocolaterie,Assets,Current Assets,Covid19 Funding (Drs),6219,Addnl Restrictions Grant,16/12/2021,Addnl Restrictions Grant,134805,Finance
"1,000.00",Sherwood Contractors Ltd,Capital Expenditure,Neighbourhoods,Disabled Facilities Grant,0332,Grants,09/11/2021,Supplies & Services,133320,Public Protection
"1,000.00",Skm Catering Ltd T/A Curry 2 Night,Assets,Current Assets,Covid19 Funding (Drs),6219,Addnl Restrictions Grant,16/12/2021,Addnl Restrictions Grant,134984,Finance
"1,000.00",St Lawrence Church,Finance & Corporate Services,Democratic Services,Members Services,1000,Grants,07/12/2021,Supplies & Services,134209,Corporate Services
"1,000.00",Teresa Burns (Burns Hair Design),Assets,Current Assets,Covid19 Funding (Drs),6219,Addnl Restrictions Grant,16/12/2021,Addnl Restrictions Grant,134917,Finance
"1,000.00",The Durham Ox Ltd,Assets,Current Assets,Covid19 Funding (Drs),6219,Addnl Restrictions Grant,16/12/2021,Addnl Restrictions Grant,134999,Finance
"1,000.00",The Ruddy Good Pub Company Bingham Ltd,Assets,Current Assets,Covid19 Funding (Drs),6219,Addnl Restrictions Grant,16/12/2021,Addnl Restrictions Grant,134811,Finance
"1,000.00",The Tanning Room (Bingham),Assets,Current Assets,Covid19 Funding (Drs),6219,Addnl Restrictions Grant,16/12/2021,Addnl Restrictions Grant,134777,Finance
"1,000.00",Yk Hair & Beauty Limited,Assets,Current Assets,Covid19 Funding (Drs),6219,Addnl Restrictions Grant,16/12/2021,Addnl Restrictions Grant,134801,Finance
997.04,Service Level Management Ltd,Transformation,Bsu,Central Mail,4871,Postages,16/11/2021,Supplies & Services,132853,Chief Executive Department 
995.00,Enigma Health & Safety Management Ltd,Transformation,Property Services,The Point,1886,Service Maintenance Contracts,22/12/2021,Premises Related Expenditure,134476,Economic Growth
990.00,Pedal Power People Company,Communities,Community Development,Sports Development,1593,Projects & Activities,04/11/2021,Supplies & Services,132852,Neighbourhoods
985.32,Nsl Limited,Neighbourhoods,Leisure Contracts & Car Parks,Car Parks,1900,Maintenance Contracts - S&S,30/11/2021,Supplies & Services,133371,Neighbourhoods
975.00,Hillcrest Bed & Breakfast,Neighbourhoods,Strategic Housing,Homeless B&B,1110,Housing-Emergency Accommodn,15/12/2021,Supplies & Services,134609,Public Protection
974.10,Procoat Uk Ltd,Capital Expenditure,Communities,Gamston Community Hall Enhance,0317,Contractors-Third Party,04/11/2021,Third Party Payments,132843,Neighbourhoods
960.00,Maltby & Company,Transformation,Property Services,Street Nameplates & Pub. Signs,1920,Contractors-Supplies & Servs,25/11/2021,Supplies & Services,133719,Economic Growth
957.76,Service Level Management Ltd,Transformation,Bsu,Central Mail,4871,Postages,20/10/2021,Supplies & Services,132042,Chief Executive Department 
950.00,Open Minds,Communities,Community Development,Health Development,1058,Grants,05/10/2021,Supplies & Services,131854,Neighbourhoods
945.00,A.T Alarms,Transformation,Customer Services,Customer Services,4807,Service Maintenance Contracts,07/12/2021,Premises Related Expenditure,134063,Corporate Services
939.52,Service Level Management Ltd,Transformation,Bsu,Central Mail,4871,Postages,20/10/2021,Supplies & Services,132040,Chief Executive Department 
937.88,Print Image Network Ltd,Finance & Corporate Services,Democratic Services,Electoral Registration,1026,External Printing,19/11/2021,Supplies & Services,133502,Chief Executive Department 
929.50,Bottomline Technologies Limited,Finance & Corporate Services,Ict,It Rechargeable Costs,4722,Maintenance Contracts - S&S,23/11/2021,Supplies & Services,132854,Corporate Services
928.94,Elexcel Ltd,Transformation,Economic Regeneration,Cotgrave Precinct,1885,Responsive Works - Buildings,02/12/2021,Premises Related Expenditure,133946,Economic Growth
925.00,Enigma Health & Safety Management Ltd,Transformation,Economic Regeneration,Cotgrave Hub/Msc - Main Bldg,1876,Service Maintenance Contracts,22/12/2021,Premises Related Expenditure,134476,Economic Growth
925.00,Enigma Health & Safety Management Ltd,Transformation,Property Services,New Offices - Cotgrave,4798,Service Maintenance Contracts,22/12/2021,Premises Related Expenditure,134476,Economic Growth
920.00,Via East Midlands Ltd,Capital Expenditure,Communities,Rcp Visitor Centre,0504,Contractors-Third Party,07/12/2021,Third Party Payments,133447,Economic Growth
918.00,Arden Winch & Co Ltd,Neighbourhoods,Waste & Fleet Management,Waste Collection,8403,Other Equipment/Materials,04/11/2021,Supplies & Services,132765,Neighbourhoods
900.00,Belinda Poon,Communities,Community Development,Arts & Events,1550,Projects & Activities,10/12/2021,Supplies & Services,134317,Neighbourhoods
900.00,Equation Training,Neighbourhoods,Environmental Health,Community Safety,1598,Projects & Activities,15/10/2021,Supplies & Services,132227,Public Protection
900.00,Hillcrest Bed & Breakfast,Neighbourhoods,Strategic Housing,Homeless B&B,1110,Housing-Emergency Accommodn,30/11/2021,Supplies & Services,134081,Public Protection
900.00,Wilford Lane Garage & Autocentre,Neighbourhoods,Environmental Health,Hackney Carriage/Private Hire,1031,Contractors-Transport,12/11/2021,Transport Related Expenditure,133308,Public Protection
896.89,Service Level Management Ltd,Transformation,Bsu,Central Mail,4871,Postages,20/10/2021,Supplies & Services,132046,Chief Executive Department 
896.40,Reach Publishing Services Limited,Communities,Planning & Growth,Development Control,1161,Advertising,05/10/2021,Supplies & Services,132414,Planning
896.40,Reach Publishing Services Limited,Communities,Planning & Growth,Development Control,1161,Advertising,07/10/2021,Supplies & Services,132065,Planning
890.00,County Fencing,Neighbourhoods,Waste & Fleet Management,Glass Recycling & Bring Sites,8407,Other Equipment/Materials,15/12/2021,Supplies & Services,134656,Neighbourhoods
889.91,Service Level Management Ltd,Transformation,Bsu,Central Mail,4871,Postages,16/11/2021,Supplies & Services,132855,Chief Executive Department 
889.00,Maltby & Company,Communities,Community Development,Gresham,8950,Responsive Works - Buildings,20/10/2021,Premises Related Expenditure,132735,Neighbourhoods
886.05,The Saville Group Ltd,Capital Expenditure,Finance & Corporate Services,Ict Replacement Programme,0592,Computer Hardware,22/12/2021,Supplies & Services,134469,Obsolete
885.00,Geldards Llp,Transformation,Property Services,Colliers Ph 2,1892,Legal & Professional Services,05/11/2021,Supplies & Services,133050,Economic Growth
875.00,Pb Fire Limited,Communities,Community Development,West Bridgford Town Centre,1875,Publicity & Promotion,07/12/2021,Supplies & Services,134326,Neighbourhoods
871.50,Reach Publishing Services Limited,Communities,Planning & Growth,Development Control,1161,Advertising,15/10/2021,Supplies & Services,132713,Planning
870.00,Streetwise Environmental Ltd           1,Neighbourhoods,Environmental Health,Work In Default,1066,Legal & Professional Services,22/12/2021,Supplies & Services,135383,Public Protection
863.99,Nsl Limited,Neighbourhoods,Leisure Contracts & Car Parks,Car Parks,1900,Maintenance Contracts - S&S,20/10/2021,Supplies & Services,132599,Neighbourhoods
856.30,Royal Mail Group Ltd,Transformation,Bsu,Central Mail,4871,Postages,29/10/2021,Supplies & Services,133072,Chief Executive Department 
850.00,Aac Air Conditioning Ltd,Transformation,Property Services,New Offices - Cotgrave,4798,Service Maintenance Contracts,05/10/2021,Premises Related Expenditure,132327,Economic Growth
850.00,Freeths Llp,Neighbourhoods,Leisure Contracts & Car Parks,Car Parks,1900,Legal & Professional Services,29/10/2021,Supplies & Services,133054,Neighbourhoods
846.88,Print Image Network Ltd,Finance & Corporate Services,Democratic Services,Electoral Registration,1026,External Printing,14/12/2021,Supplies & Services,134193,Chief Executive Department 
840.00,Stage Connections Ltd,Communities,Community Development,West Bridgford Town Centre,1875,Publicity & Promotion,30/11/2021,Supplies & Services,134076,Neighbourhoods
831.13,Streetwise Environmental Ltd           1,Neighbourhoods,Strategic Housing,Hostel Hound Lodge,1111,Other Miscellaneous Expenses,12/11/2021,Supplies & Services,133314,Public Protection
825.00,Enigma Health & Safety Management Ltd,Transformation,Property Services,Castle Donington,1863,Service Maintenance Contracts,22/12/2021,Premises Related Expenditure,134476,Economic Growth
820.00,Helter Skelter Arts Ltd,Communities,Community Development,West Bridgford Town Centre,1875,Publicity & Promotion,30/11/2021,Supplies & Services,134073,Neighbourhoods
811.58,Emec Ecology,Communities,Community Development,Environmental Promotion,1590,Legal & Professional Services,12/10/2021,Supplies & Services,132036,Public Protection
811.19,Edf Energy,Transformation,Property Services,The Point,1886,Electricity,29/10/2021,Premises Related Expenditure,132504,Economic Growth
806.76,Edf Energy,Communities,Community Development,Rushcliffe Country Park,1375,Electricity,12/10/2021,Premises Related Expenditure,132503,Neighbourhoods
805.17,Mewies Engineering Consultants Ltd,Neighbourhoods,Leisure Contracts & Car Parks,Edwalton Golf Courses,1400,Legal & Professional Services,12/11/2021,Supplies & Services,133296,Neighbourhoods
800.00,Cornerstone Barristers,Transformation,Legal,Legal Services,4701,Other Income,30/11/2021,Income,133963,Chief Executive Department 
800.00,Rural Retailers Ltd,Transformation,Economic Regeneration,Bingham Market Stalls,1880,Legal & Professional Services,02/11/2021,Supplies & Services,133195,Economic Growth
800.00,Rural Retailers Ltd,Transformation,Economic Regeneration,Bingham Market Stalls,1880,Legal & Professional Services,07/12/2021,Supplies & Services,134390,Economic Growth
799.20,Thorn Baker Ltd,Neighbourhoods,Waste & Fleet Management,Waste Collection,8403,Agency Staff,05/10/2021,Employee Related Expenditure,132376,Neighbourhoods
799.20,Thorn Baker Ltd,Neighbourhoods,Waste & Fleet Management,Waste Collection,8403,Agency Staff,12/10/2021,Employee Related Expenditure,132635,Neighbourhoods
799.20,Thorn Baker Ltd,Neighbourhoods,Waste & Fleet Management,Waste Collection,8403,Agency Staff,10/12/2021,Employee Related Expenditure,134341,Neighbourhoods
799.20,Thorn Baker Ltd,Neighbourhoods,Waste & Fleet Management,Waste Collection,8403,Agency Staff,22/12/2021,Employee Related Expenditure,135370,Neighbourhoods
795.60,Thorn Baker Limited,Neighbourhoods,Waste & Fleet Management,Waste Collection,8403,Agency Staff,05/10/2021,Employee Related Expenditure,132199,Neighbourhoods
792.00,G2 Recruitment Solutions,Neighbourhoods,Environmental Health,Environmental Health Ha,4743,Agency Staff,30/11/2021,Employee Related Expenditure,133722,Public Protection
788.36,Eon,Transformation,Property Services,New Offices - Cotgrave,4798,Electricity,22/12/2021,Premises Related Expenditure,134653,Economic Growth
773.43,Egbert H Taylor & Co Ltd,Neighbourhoods,Waste & Fleet Management,Waste Collection,8403,Other Equipment/Materials,22/12/2021,Supplies & Services,134219,Neighbourhoods
770.00,Westcotes House Ltd,Neighbourhoods,Strategic Housing,Homeless B&B,1110,Housing-Emergency Accommodn,05/10/2021,Supplies & Services,132211,Public Protection
765.61,Eon,Transformation,Economic Regeneration,Cotgrave Hub/Msc -Shared Entry,1878,Electricity,15/10/2021,Premises Related Expenditure,132659,Economic Growth
765.00,Buxtons Forestry & Garden Equipment Suppliers,Communities,Community Development,Rushcliffe Country Park,1375,Purchases For Recharge,10/12/2021,Supplies & Services,134049,Neighbourhoods
763.90,The Marquee Company Limited,Communities,Community Development,Arts & Events,1550,Projects & Activities,04/11/2021,Supplies & Services,133241,Neighbourhoods
758.33,L S Recycling,Neighbourhoods,Waste & Fleet Management,Glass Recycling & Bring Sites,8407,Other Services,20/10/2021,Supplies & Services,132532,Neighbourhoods
758.33,L S Recycling,Neighbourhoods,Waste & Fleet Management,Glass Recycling & Bring Sites,8407,Other Services,19/11/2021,Supplies & Services,133333,Neighbourhoods
758.33,L S Recycling,Neighbourhoods,Waste & Fleet Management,Glass Recycling & Bring Sites,8407,Other Services,22/12/2021,Supplies & Services,134314,Neighbourhoods
758.00,Medigold Health Consultancy Ltd,Transformation,Human Resources,Human Resources,4709,Legal & Professional Services,26/10/2021,Supplies & Services,132614,Chief Executive Department 
756.00,G2 Recruitment Solutions,Neighbourhoods,Environmental Health,Environmental Health Ha,4743,Agency Staff,12/11/2021,Employee Related Expenditure,133286,Public Protection
756.00,Igo Promo,Neighbourhoods,Environmental Health,Community Safety,1598,Projects & Activities,30/11/2021,Supplies & Services,133758,Public Protection
754.00,Midland Signs Leicester Ltd,Transformation,Property Services,Street Nameplates & Pub. Signs,1920,Contractors-Supplies & Servs,09/11/2021,Supplies & Services,132960,Economic Growth
750.00,7 Spice,Assets,Current Assets,Covid19 Funding (Drs),6219,Addnl Restrictions Grant,16/12/2021,Addnl Restrictions Grant,134998,Finance
750.00,Aim For Beauty,Assets,Current Assets,Covid19 Funding (Drs),6219,Addnl Restrictions Grant,16/12/2021,Addnl Restrictions Grant,134959,Finance
750.00,Alices Catering,Assets,Current Assets,Covid19 Funding (Drs),6219,Addnl Restrictions Grant,16/12/2021,Addnl Restrictions Grant,134893,Finance
750.00,Allison Laura Cundell (Nee Rainbow),Assets,Current Assets,Covid19 Funding (Drs),6219,Addnl Restrictions Grant,16/12/2021,Addnl Restrictions Grant,134865,Finance
750.00,Amy Louise Briffa,Assets,Current Assets,Covid19 Funding (Drs),6219,Addnl Restrictions Grant,16/12/2021,Addnl Restrictions Grant,134774,Finance
750.00,Barber Queue,Assets,Current Assets,Covid19 Funding (Drs),6219,Addnl Restrictions Grant,16/12/2021,Addnl Restrictions Grant,135010,Finance
750.00,Beauty Works By Lauren,Assets,Current Assets,Covid19 Funding (Drs),6219,Addnl Restrictions Grant,16/12/2021,Addnl Restrictions Grant,134937,Finance
750.00,Bliss Beauty,Assets,Current Assets,Covid19 Funding (Drs),6219,Addnl Restrictions Grant,16/12/2021,Addnl Restrictions Grant,135002,Finance
750.00,Blu,Assets,Current Assets,Covid19 Funding (Drs),6219,Addnl Restrictions Grant,16/12/2021,Addnl Restrictions Grant,134930,Finance
750.00,Blu Hair & Tanning Ltd,Assets,Current Assets,Covid19 Funding (Drs),6219,Addnl Restrictions Grant,16/12/2021,Addnl Restrictions Grant,134783,Finance
750.00,Bread And Butterflies Ltd,Assets,Current Assets,Covid19 Funding (Drs),6219,Addnl Restrictions Grant,16/12/2021,Addnl Restrictions Grant,134816,Finance
750.00,Cafe Olive,Assets,Current Assets,Covid19 Funding (Drs),6219,Addnl Restrictions Grant,16/12/2021,Addnl Restrictions Grant,134916,Finance
750.00,Caffe Velo Verde Ltd,Assets,Current Assets,Covid19 Funding (Drs),6219,Addnl Restrictions Grant,16/12/2021,Addnl Restrictions Grant,134993,Finance
750.00,Carol Susan Henderson,Assets,Current Assets,Covid19 Funding (Drs),6219,Addnl Restrictions Grant,16/12/2021,Addnl Restrictions Grant,134971,Finance
750.00,Chefs Cafe,Assets,Current Assets,Covid19 Funding (Drs),6219,Addnl Restrictions Grant,16/12/2021,Addnl Restrictions Grant,134939,Finance
750.00,Chic Boutique,Assets,Current Assets,Covid19 Funding (Drs),6219,Addnl Restrictions Grant,16/12/2021,Addnl Restrictions Grant,134955,Finance
750.00,Christophers Barbers.,Assets,Current Assets,Covid19 Funding (Drs),6219,Addnl Restrictions Grant,16/12/2021,Addnl Restrictions Grant,134820,Finance
750.00,Dan@Silklimited,Assets,Current Assets,Covid19 Funding (Drs),6219,Addnl Restrictions Grant,16/12/2021,Addnl Restrictions Grant,134825,Finance
750.00,Evagçös Grill,Assets,Current Assets,Covid19 Funding (Drs),6219,Addnl Restrictions Grant,16/12/2021,Addnl Restrictions Grant,134934,Finance
750.00,Frangos Chicken Grill House,Assets,Current Assets,Covid19 Funding (Drs),6219,Addnl Restrictions Grant,16/12/2021,Addnl Restrictions Grant,134915,Finance
750.00,Gino'S Ristorante Ltd,Assets,Current Assets,Covid19 Funding (Drs),6219,Addnl Restrictions Grant,16/12/2021,Addnl Restrictions Grant,134960,Finance
750.00,Globalscale Ltd,Assets,Current Assets,Covid19 Funding (Drs),6219,Addnl Restrictions Grant,16/12/2021,Addnl Restrictions Grant,134848,Finance
750.00,Grannies Ltd,Assets,Current Assets,Covid19 Funding (Drs),6219,Addnl Restrictions Grant,16/12/2021,Addnl Restrictions Grant,134992,Finance
750.00,Hardis Barber,Assets,Current Assets,Covid19 Funding (Drs),6219,Addnl Restrictions Grant,16/12/2021,Addnl Restrictions Grant,134949,Finance
750.00,Heading Out Hair Salon,Assets,Current Assets,Covid19 Funding (Drs),6219,Addnl Restrictions Grant,16/12/2021,Addnl Restrictions Grant,134975,Finance
750.00,Individuals Hair Design Ltd,Assets,Current Assets,Covid19 Funding (Drs),6219,Addnl Restrictions Grant,16/12/2021,Addnl Restrictions Grant,134935,Finance
750.00,Inform Cpi Ltd,Finance & Corporate Services,Revenues & Benefits,Nndr,1038,Legal & Professional Services,10/12/2021,Supplies & Services,133337,Finance
750.00,Invisible Touch Tanning And Beauty Ltd,Assets,Current Assets,Covid19 Funding (Drs),6219,Addnl Restrictions Grant,16/12/2021,Addnl Restrictions Grant,134822,Finance
750.00,James White Hair,Assets,Current Assets,Covid19 Funding (Drs),6219,Addnl Restrictions Grant,16/12/2021,Addnl Restrictions Grant,134995,Finance
750.00,J And D Barbers Ltd,Assets,Current Assets,Covid19 Funding (Drs),6219,Addnl Restrictions Grant,16/12/2021,Addnl Restrictions Grant,134837,Finance
750.00,Jaspers Cafe,Assets,Current Assets,Covid19 Funding (Drs),6219,Addnl Restrictions Grant,16/12/2021,Addnl Restrictions Grant,134888,Finance
750.00,Justyne Clarke,Assets,Current Assets,Covid19 Funding (Drs),6219,Addnl Restrictions Grant,16/12/2021,Addnl Restrictions Grant,134996,Finance
750.00,Kemp & Sons Barbering Ltd,Assets,Current Assets,Covid19 Funding (Drs),6219,Addnl Restrictions Grant,16/12/2021,Addnl Restrictions Grant,134776,Finance
750.00,Kew Beauty Clinic,Assets,Current Assets,Covid19 Funding (Drs),6219,Addnl Restrictions Grant,16/12/2021,Addnl Restrictions Grant,134950,Finance
750.00,Keyworth Barber,Assets,Current Assets,Covid19 Funding (Drs),6219,Addnl Restrictions Grant,16/12/2021,Addnl Restrictions Grant,134796,Finance
750.00,La Storia,Assets,Current Assets,Covid19 Funding (Drs),6219,Addnl Restrictions Grant,16/12/2021,Addnl Restrictions Grant,134886,Finance
750.00,Marie Hall Hairdressing Ltd,Assets,Current Assets,Covid19 Funding (Drs),6219,Addnl Restrictions Grant,16/12/2021,Addnl Restrictions Grant,135012,Finance
750.00,Marleys Bodyart,Assets,Current Assets,Covid19 Funding (Drs),6219,Addnl Restrictions Grant,16/12/2021,Addnl Restrictions Grant,134958,Finance
750.00,Morgan And Company (Nottm) Ltd,Assets,Current Assets,Covid19 Funding (Drs),6219,Addnl Restrictions Grant,16/12/2021,Addnl Restrictions Grant,134775,Finance
750.00,Mortons Cafe And Deli Ltd,Assets,Current Assets,Covid19 Funding (Drs),6219,Addnl Restrictions Grant,16/12/2021,Addnl Restrictions Grant,134804,Finance
750.00,Mrs Coffee Ltd,Assets,Current Assets,Covid19 Funding (Drs),6219,Addnl Restrictions Grant,16/12/2021,Addnl Restrictions Grant,134966,Finance
750.00,Munn & Co Hairdressing,Assets,Current Assets,Covid19 Funding (Drs),6219,Addnl Restrictions Grant,16/12/2021,Addnl Restrictions Grant,135009,Finance
750.00,Mystique Nail Bar,Assets,Current Assets,Covid19 Funding (Drs),6219,Addnl Restrictions Grant,16/12/2021,Addnl Restrictions Grant,134860,Finance
750.00,Nical Ltd,Assets,Current Assets,Covid19 Funding (Drs),6219,Addnl Restrictions Grant,16/12/2021,Addnl Restrictions Grant,134802,Finance
750.00,No9 Mens Hair,Assets,Current Assets,Covid19 Funding (Drs),6219,Addnl Restrictions Grant,16/12/2021,Addnl Restrictions Grant,134972,Finance
750.00,Reds Sports Bar Ltd,Assets,Current Assets,Covid19 Funding (Drs),6219,Addnl Restrictions Grant,16/12/2021,Addnl Restrictions Grant,134938,Finance
750.00,Rj Management Ltd T/A Yard Of Ale,Assets,Current Assets,Covid19 Funding (Drs),6219,Addnl Restrictions Grant,16/12/2021,Addnl Restrictions Grant,134988,Finance
750.00,Rose & May Ltd.,Assets,Current Assets,Covid19 Funding (Drs),6219,Addnl Restrictions Grant,16/12/2021,Addnl Restrictions Grant,134792,Finance
750.00,Sk&S Limited,Assets,Current Assets,Covid19 Funding (Drs),6219,Addnl Restrictions Grant,16/12/2021,Addnl Restrictions Grant,134812,Finance
750.00,Sophias Coffee Shop,Assets,Current Assets,Covid19 Funding (Drs),6219,Addnl Restrictions Grant,16/12/2021,Addnl Restrictions Grant,135004,Finance
750.00,Stephanie Cole,Assets,Current Assets,Covid19 Funding (Drs),6219,Addnl Restrictions Grant,16/12/2021,Addnl Restrictions Grant,134877,Finance
750.00,Studio 39 Hair And Beauty Ltd,Assets,Current Assets,Covid19 Funding (Drs),6219,Addnl Restrictions Grant,16/12/2021,Addnl Restrictions Grant,134800,Finance
750.00,Synergy Beauty Studio,Assets,Current Assets,Covid19 Funding (Drs),6219,Addnl Restrictions Grant,16/12/2021,Addnl Restrictions Grant,134870,Finance
750.00,Taste,Assets,Current Assets,Covid19 Funding (Drs),6219,Addnl Restrictions Grant,16/12/2021,Addnl Restrictions Grant,134951,Finance
750.00,The Anchor Inn Sutton Bonington,Assets,Current Assets,Covid19 Funding (Drs),6219,Addnl Restrictions Grant,16/12/2021,Addnl Restrictions Grant,134839,Finance
750.00,The Barbers Lounge,Assets,Current Assets,Covid19 Funding (Drs),6219,Addnl Restrictions Grant,16/12/2021,Addnl Restrictions Grant,134799,Finance
750.00,The Boot & Shoe Ltd,Assets,Current Assets,Covid19 Funding (Drs),6219,Addnl Restrictions Grant,16/12/2021,Addnl Restrictions Grant,134797,Finance
750.00,The Bottle Top,Assets,Current Assets,Covid19 Funding (Drs),6219,Addnl Restrictions Grant,16/12/2021,Addnl Restrictions Grant,134943,Finance
750.00,The Cuckoo Bush,Assets,Current Assets,Covid19 Funding (Drs),6219,Addnl Restrictions Grant,16/12/2021,Addnl Restrictions Grant,134929,Finance
750.00,The Face Queen,Assets,Current Assets,Covid19 Funding (Drs),6219,Addnl Restrictions Grant,16/12/2021,Addnl Restrictions Grant,134973,Finance
750.00,The Humble Cat Limited,Assets,Current Assets,Covid19 Funding (Drs),6219,Addnl Restrictions Grant,16/12/2021,Addnl Restrictions Grant,134785,Finance
750.00,The Old Bakehouse Tearoom,Assets,Current Assets,Covid19 Funding (Drs),6219,Addnl Restrictions Grant,16/12/2021,Addnl Restrictions Grant,134849,Finance
750.00,The Old Wharf,Assets,Current Assets,Covid19 Funding (Drs),6219,Addnl Restrictions Grant,16/12/2021,Addnl Restrictions Grant,134901,Finance
750.00,The Pamper Room,Assets,Current Assets,Covid19 Funding (Drs),6219,Addnl Restrictions Grant,16/12/2021,Addnl Restrictions Grant,134914,Finance
750.00,The Round Robinn Ltd.,Assets,Current Assets,Covid19 Funding (Drs),6219,Addnl Restrictions Grant,16/12/2021,Addnl Restrictions Grant,135013,Finance
750.00,The Ruddy Good Cocktail Company Ltd,Assets,Current Assets,Covid19 Funding (Drs),6219,Addnl Restrictions Grant,16/12/2021,Addnl Restrictions Grant,134810,Finance
750.00,The Strand,Assets,Current Assets,Covid19 Funding (Drs),6219,Addnl Restrictions Grant,16/12/2021,Addnl Restrictions Grant,134856,Finance
750.00,The Sun Inn,Assets,Current Assets,Covid19 Funding (Drs),6219,Addnl Restrictions Grant,16/12/2021,Addnl Restrictions Grant,134878,Finance
750.00,Thompson & Gregory Limited,Assets,Current Assets,Covid19 Funding (Drs),6219,Addnl Restrictions Grant,16/12/2021,Addnl Restrictions Grant,134795,Finance
750.00,Tiffin Teahouse Ltd,Assets,Current Assets,Covid19 Funding (Drs),6219,Addnl Restrictions Grant,16/12/2021,Addnl Restrictions Grant,134779,Finance
750.00,Total Image Clinic,Assets,Current Assets,Covid19 Funding (Drs),6219,Addnl Restrictions Grant,16/12/2021,Addnl Restrictions Grant,134794,Finance
750.00,Trang'S Beauty Ltd,Assets,Current Assets,Covid19 Funding (Drs),6219,Addnl Restrictions Grant,16/12/2021,Addnl Restrictions Grant,134919,Finance
750.00,Traysi Kirk,Assets,Current Assets,Covid19 Funding (Drs),6219,Addnl Restrictions Grant,16/12/2021,Addnl Restrictions Grant,134778,Finance
750.00,Treats Beaut And Aesthetics Limited,Assets,Current Assets,Covid19 Funding (Drs),6219,Addnl Restrictions Grant,16/12/2021,Addnl Restrictions Grant,134791,Finance
750.00,Uppercuts,Assets,Current Assets,Covid19 Funding (Drs),6219,Addnl Restrictions Grant,16/12/2021,Addnl Restrictions Grant,134941,Finance
750.00,Wendy Dawn Farnsworth,Assets,Current Assets,Covid19 Funding (Drs),6219,Addnl Restrictions Grant,16/12/2021,Addnl Restrictions Grant,135003,Finance
750.00,White And Co Barbers Ltd,Assets,Current Assets,Covid19 Funding (Drs),6219,Addnl Restrictions Grant,16/12/2021,Addnl Restrictions Grant,134894,Finance
750.00,York Hair Ltd,Assets,Current Assets,Covid19 Funding (Drs),6219,Addnl Restrictions Grant,16/12/2021,Addnl Restrictions Grant,134832,Finance
749.40,Tunstall Response Ltd,Neighbourhoods,Strategic Housing,Home Alarms,1137,Other Services,20/10/2021,Supplies & Services,132362,Public Protection
747.00,Licence Check Ltd,Finance & Corporate Services,Ict,It Rechargeable Costs,4722,Maintenance Contracts - S&S,05/10/2021,Supplies & Services,132200,Corporate Services
747.00,Reach Publishing Services Limited,Communities,Planning & Growth,Development Control,1161,Advertising,13/10/2021,Supplies & Services,132714,Planning
730.00,Inform Cpi Ltd,Finance & Corporate Services,Revenues & Benefits,Nndr,1038,Legal & Professional Services,10/12/2021,Supplies & Services,133763,Finance
727.00,Print Image Network Ltd,Finance & Corporate Services,Democratic Services,Borough Council Elections,1021,External Printing,04/11/2021,Supplies & Services,132872,Chief Executive Department 
725.00,South Notts Fabrications Ltd,Communities,Community Development,Gresham,8950,Responsive Works - Buildings,23/12/2021,Premises Related Expenditure,134629,Neighbourhoods
719.16,Cotgrave Town Council,Transformation,Economic Regeneration,Cotgrave Precinct,1885,Grounds Maintenance,29/10/2021,Premises Related Expenditure,133031,Economic Growth
718.37,Castle Water Limited,Communities,Community Development,Gresham,8950,Water Charges,20/10/2021,Premises Related Expenditure,132601,Neighbourhoods
712.50,Wilford Lane Garage & Autocentre,Neighbourhoods,Environmental Health,Hackney Carriage/Private Hire,1031,Contractors-Transport,10/12/2021,Transport Related Expenditure,134262,Public Protection
708.60,Terberg Matec Uk Limited,Capital Expenditure,Neighbourhoods,Vehicle Replacement,0680,Vehicles Acquisition,12/10/2021,Supplies & Services,132522,Neighbourhoods
700.00,Champions (Uk) Plc,Communities,Community Development,Arts & Events,1550,Projects & Activities,07/10/2021,Supplies & Services,132250,Neighbourhoods
700.00,Env & Energy Performance Consultants Ltd,Transformation,Property Services,Arena Civic Centre,4718,Service Maintenance Contracts,20/10/2021,Premises Related Expenditure,132602,Economic Growth
700.00,Fools Paradise Ltd,Communities,Community Development,West Bridgford Town Centre,1875,Publicity & Promotion,02/12/2021,Supplies & Services,134246,Neighbourhoods
700.00,Global Village Paramount Hotel,Neighbourhoods,Strategic Housing,Homeless B&B,1110,Housing-Emergency Accommodn,10/12/2021,Supplies & Services,134385,Public Protection
700.00,Licence Check Ltd,Neighbourhoods,Environmental Health,Hackney Carriage/Private Hire,1031,Other Equipment/Materials,05/11/2021,Supplies & Services,133370,Public Protection
700.00,Parking Ventilation Equipment Ltd,Transformation,Property Services,The Point,1886,Service Maintenance Contracts,30/11/2021,Premises Related Expenditure,133849,Economic Growth
700.00,The Tudor Lodge Hotel,Neighbourhoods,Strategic Housing,Homeless B&B,1110,Housing-Emergency Accommodn,30/11/2021,Supplies & Services,133688,Public Protection
699.30,Etto Motorcycles Ltd,Transformation,Economic Regeneration,Economic Development,1887,Legal & Professional Services,26/10/2021,Supplies & Services,132248,Economic Growth
697.20,Reach Publishing Services Limited,Communities,Planning & Growth,Development Control,1161,Advertising,30/11/2021,Supplies & Services,133685,Planning
689.01,Eon,Transformation,Property Services,New Offices - Cotgrave,4798,Electricity,30/11/2021,Premises Related Expenditure,133745,Economic Growth
682.26,Acs Systems Uk Ltd T/A Acs Office Solutions,Finance & Corporate Services,Ict,It Rechargeable Costs,4722,Software,20/10/2021,Supplies & Services,132482,Corporate Services
679.00,Nbc Enviroment Ltd,Transformation,Property Services,New Offices - Cotgrave,4798,Planned Maintenance Recharge,20/12/2021,Supplies & Services,134475,Economic Growth
678.00,Weightmans,Transformation,Legal,Legal Services,4701,Other Income,29/10/2021,Income,131777,Chief Executive Department 
672.00,Esw Electrical,Neighbourhoods,Environmental Health,Housing Standards,1129,Legal & Professional Services,10/12/2021,Supplies & Services,134470,Public Protection
664.60,Streetwise Environmental Ltd           1,Transformation,Property Services,Open Spaces & Footpaths,1290,Responsive Works - Buildings,20/12/2021,Premises Related Expenditure,97432,Economic Growth
659.50,B E Events,Communities,Community Development,Arts & Events,1550,Projects & Activities,07/12/2021,Supplies & Services,134332,Neighbourhoods
653.90,Maltby & Company,Communities,Community Development,West Park,8994,Responsive Works - Buildings,14/12/2021,Premises Related Expenditure,134357,Neighbourhoods
650.00,Hex Productions,Finance & Corporate Services,"Performance, Repn & Comms",Performance And Reputation,4710,Legal & Professional Services,05/10/2021,Supplies & Services,132357,Corporate Services
650.00,Hex Productions,Finance & Corporate Services,"Performance, Repn & Comms",Performance And Reputation,4710,Legal & Professional Services,12/11/2021,Supplies & Services,133247,Corporate Services
650.00,Hex Productions,Finance & Corporate Services,"Performance, Repn & Comms",Performance And Reputation,4710,Legal & Professional Services,10/12/2021,Supplies & Services,134214,Corporate Services
650.00,Howard Ward Associates Ltd,Transformation,Property Services,Keyworth Cemetery,1933,Legal & Professional Services,20/10/2021,Supplies & Services,132330,Economic Growth
648.30,Killgerm Chemicals Ltd,Neighbourhoods,Environmental Health,Pest Control,1062,Other Equipment/Materials,30/11/2021,Supplies & Services,133623,Public Protection
647.40,Reach Publishing Services Limited,Communities,Planning & Growth,Development Control,1161,Advertising,25/11/2021,Supplies & Services,133487,Planning
642.68,Drax,Transformation,Property Services,Castle Donington,1863,Electricity,12/11/2021,Premises Related Expenditure,133340,Economic Growth
638.06,Castle Water Limited,Communities,Community Development,Gamston Community Hall,8992,Water Charges,05/11/2021,Premises Related Expenditure,133099,Neighbourhoods
635.00,Direct Trade Bags,Transformation,Economic Regeneration,Bingham Market Stalls,1880,Advertising,23/11/2021,Supplies & Services,133679,Economic Growth
630.00,Nuthall Electrical Services Ltd,Transformation,Property Services,The Point,1886,Responsive Works - Buildings,10/12/2021,Premises Related Expenditure,134457,Economic Growth
620.00,Friends Of Cotgrave Country Park,Communities,Community Development,Environmental Promotion,1590,Grants,05/10/2021,Supplies & Services,132067,Public Protection
617.80,Arden Winch & Co Ltd,Neighbourhoods,Waste & Fleet Management,Waste Collection,8403,Other Equipment/Materials,05/10/2021,Supplies & Services,131913,Neighbourhoods
612.50,Browne Jacobson,Capital Income,Capital Receipts,"Sharphill, Edwalton (Wells Lan",9081,Legal & Professional Services,15/12/2021,Supplies & Services,134468,Neighbourhoods
611.30,Via East Midlands Ltd,Transformation,Property Services,Open Spaces & Footpaths,1290,Responsive Works - Buildings,07/10/2021,Premises Related Expenditure,131519,Economic Growth
608.33,Bpp Proffesional Education Limited,Finance & Corporate Services,Financial Services,Financial Services,4705,Training Expenses,25/11/2021,Employee Related Expenditure,133469,Finance
602.78,Nottinghamshire County Council,Transformation,Property Services,Open Spaces & Footpaths,1290,Responsive Works - Buildings,20/10/2021,Premises Related Expenditure,132322,Economic Growth
600.46,Eon,Transformation,Property Services,New Offices - Cotgrave,4798,Electricity,20/10/2021,Premises Related Expenditure,132834,Economic Growth
600.00,Can Samba,Transformation,Economic Regeneration,High Streets Safely,1881,Legal & Professional Services,12/11/2021,Supplies & Services,133472,Economic Growth
600.00,Chewings Services,Capital Expenditure,Communities,Gresham Pavilion,0347,Contractors-Supplies & Servs,05/10/2021,Supplies & Services,132055,Neighbourhoods
600.00,Chewings Services,Capital Expenditure,Communities,Gresham Pavilion,0347,Contractors-Third Party,02/11/2021,Third Party Payments,133065,Neighbourhoods
600.00,Nicola Coker,Communities,Community Development,West Bridgford Town Centre,1875,Publicity & Promotion,10/12/2021,Supplies & Services,134245,Neighbourhoods
600.00,Qa Ltd,Finance & Corporate Services,Ict,It,4703,Training Expenses,10/12/2021,Employee Related Expenditure,134195,Corporate Services
600.00,Streetwise Environmental Ltd           1,Transformation,Property Services,Open Spaces & Footpaths,1290,Responsive Works - Buildings,05/10/2021,Premises Related Expenditure,132045,Economic Growth
596.92,Arden Winch & Co Ltd,Neighbourhoods,Waste & Fleet Management,Waste Collection,8403,Other Equipment/Materials,17/11/2021,Supplies & Services,133124,Neighbourhoods
595.00,Mjs Fibre & Data Installations Ltd,Finance & Corporate Services,Ict,It Rechargeable Costs,4722,Legal & Professional Services,14/12/2021,Supplies & Services,134606,Corporate Services
595.00,Prepared Media Ltd,Finance & Corporate Services,Financial Services,Financial Services,4705,Employee Advertising,25/11/2021,Employee Related Expenditure,133855,Finance
590.00,Dta Electrical,Communities,Community Development,Lutterell Hall,8990,Planned Maintenance Recharge,05/10/2021,Supplies & Services,132238,Neighbourhoods
589.97,Horizon Landscapes Ltd,Communities,Community Development,Environmental Promotion,1590,Legal & Professional Services,02/12/2021,Supplies & Services,133514,Public Protection
588.00,G2 Recruitment Solutions,Neighbourhoods,Environmental Health,Environmental Health Ha,4743,Agency Staff,02/11/2021,Employee Related Expenditure,132954,Public Protection
580.35,Chine House Veterinary,Neighbourhoods,Environmental Health,Housing Standards,1129,Legal & Professional Services,07/12/2021,Supplies & Services,134340,Public Protection
578.00,Alice Cobbin,Transformation,Economic Regeneration,Economic Development,1887,Legal & Professional Services,04/11/2021,Supplies & Services,133301,Economic Growth
570.61,Maltby & Company,Transformation,Property Services,Open Spaces & Footpaths,1290,Responsive Works - Buildings,19/11/2021,Premises Related Expenditure,133713,Economic Growth
562.50,Quantum Fire & Security Ltd,Transformation,Property Services,The Point,1886,Service Maintenance Contracts,22/12/2021,Premises Related Expenditure,134462,Economic Growth
561.00,Espo,Neighbourhoods,Strategic Housing,Hostel Hound Lodge,1111,Other Equipment/Materials,12/10/2021,Supplies & Services,132498,Public Protection
559.00,Zurich Municipal,Finance & Corporate Services,Financial Services,Liability Claims,4921,Excesses Paid,16/12/2021,Transfers Expenditure,134502,Finance
555.99,Royal Mail Group Ltd,Finance & Corporate Services,Democratic Services,Borough Council Elections,1021,Postages,29/10/2021,Supplies & Services,133072,Chief Executive Department 
555.00,Electoral Reform Services,Finance & Corporate Services,Democratic Services,Electoral Registration,1026,External Printing,17/11/2021,Supplies & Services,133242,Chief Executive Department 
550.00,A R Signs Ltd,Capital Expenditure,Communities,Gamston Community Hall Enhance,0317,Contractors-Supplies & Servs,22/12/2021,Supplies & Services,134519,Neighbourhoods
550.00,Professional Sportsturf Design (Nw) Limited,Capital Expenditure,Communities,Gresham Pitches,0280,Legal & Professional Services,12/11/2021,Supplies & Services,133197,Economic Growth
546.18,Eon,Transformation,Property Services,Unit 10 Moorbridge,4788,Electricity,20/10/2021,Premises Related Expenditure,132758,Economic Growth
545.58,Vip System Limited,Neighbourhoods,Environmental Health,Hackney Carriage/Private Hire,1031,Other Equipment/Materials,30/11/2021,Supplies & Services,133522,Public Protection
540.00,A.T Alarms,Transformation,Property Services,Castle Donington,1863,Service Maintenance Contracts,07/12/2021,Premises Related Expenditure,134064,Economic Growth
540.00,Fred Brown Car Repairs Limited,Neighbourhoods,Environmental Health,Hackney Carriage/Private Hire,1031,Contractors-Transport,02/12/2021,Transport Related Expenditure,134224,Public Protection
540.00,Miss Chloe Blackwell,Communities,Community Development,West Bridgford Town Centre,1875,Publicity & Promotion,02/12/2021,Supplies & Services,134241,Neighbourhoods
534.18,Arden Winch & Co Ltd,Neighbourhoods,Waste & Fleet Management,Waste Collection,8403,Other Equipment/Materials,29/10/2021,Supplies & Services,132640,Neighbourhoods
530.00,Nottingham & District Pre-Retirement Council,Transformation,Human Resources,Corporate Training,4893,Training Expenses,30/11/2021,Employee Related Expenditure,133949,Chief Executive Department 
528.00,Advanced Protection Systems Ltd,Transformation,Property Services,Arena Civic Centre,4718,Service Maintenance Contracts,30/11/2021,Premises Related Expenditure,133485,Economic Growth
528.00,G2 Recruitment Solutions,Neighbourhoods,Environmental Health,Environmental Health Ha,4743,Agency Staff,20/10/2021,Employee Related Expenditure,132734,Public Protection
526.89,Frontline Recruitment Ltd,Neighbourhoods,Waste & Fleet Management,Waste Collection,8403,Agency Staff,12/10/2021,Employee Related Expenditure,132638,Neighbourhoods
525.00,Bridgfordian Ltd,Communities,Community Development,Sports Development,1593,Projects & Activities,10/12/2021,Supplies & Services,134386,Neighbourhoods
525.00,Cornerstone Barristers,Transformation,Legal,Legal Services,4701,Other Income,29/10/2021,Income,132197,Chief Executive Department 
524.00,Sherwood Farms Ltd,Neighbourhoods,Waste & Fleet Management,Waste Collection,8403,Contractors-Supplies & Servs,20/10/2021,Supplies & Services,132811,Neighbourhoods
523.46,Bt Telephone Payment Centre,Finance & Corporate Services,Ict,Telephones,4870,Telephone Rental,12/10/2021,Supplies & Services,132531,Corporate Services
519.10,Acs Systems Uk Ltd T/A Acs Office Solutions,Finance & Corporate Services,Ict,It Rechargeable Costs,4722,Other Peripherals,05/11/2021,Supplies & Services,132952,Corporate Services
516.75,Broxtowe Borough Council,Neighbourhoods,Leisure Contracts & Car Parks,Car Parks,1900,Maintenance Contracts - S&S,07/12/2021,Supplies & Services,133965,Neighbourhoods
515.00,Radcliffe Olympic Football Club,Finance & Corporate Services,Democratic Services,Members Services,1000,Grants,02/11/2021,Supplies & Services,132868,Corporate Services
513.00,Ferret Information Systems,Finance & Corporate Services,Ict,It Rechargeable Costs,4722,Maintenance Contracts - S&S,23/12/2021,Supplies & Services,135020,Corporate Services
512.99,Eon,Transformation,Property Services,Unit 10 Moorbridge,4788,Electricity,22/12/2021,Premises Related Expenditure,134508,Economic Growth
512.00,Quantum Fire & Security Ltd,Transformation,Property Services,The Point,1886,Responsive Works - Buildings,22/12/2021,Premises Related Expenditure,134463,Economic Growth
506.85,Arden Winch & Co Ltd,Neighbourhoods,Waste & Fleet Management,Waste Collection,8403,Other Equipment/Materials,23/12/2021,Supplies & Services,135034,Neighbourhoods
506.37,Arden Winch & Co Ltd,Neighbourhoods,Waste & Fleet Management,Waste Collection,8403,Other Equipment/Materials,07/12/2021,Supplies & Services,133737,Neighbourhoods
504.00,G2 Recruitment Solutions,Neighbourhoods,Environmental Health,Environmental Health Ha,4743,Agency Staff,22/12/2021,Employee Related Expenditure,135029,Public Protection
503.42,Teleware Plc,Finance & Corporate Services,Ict,Telephones,4870,Telephone Rental,30/11/2021,Supplies & Services,133967,Corporate Services
501.13,Eon,Transformation,Property Services,Unit 10 Moorbridge,4788,Electricity,23/11/2021,Premises Related Expenditure,133625,Economic Growth
500.26,Total Gas And Power Ltd,Communities,Community Development,Gresham,8950,Gas,15/12/2021,Premises Related Expenditure,134613,Neighbourhoods
500.00,Env & Energy Performance Consultants Ltd,Transformation,Property Services,Castle Donington,1863,Service Maintenance Contracts,20/10/2021,Premises Related Expenditure,132602,Economic Growth
500.00,Env & Energy Performance Consultants Ltd,Transformation,Property Services,The Point,1886,Service Maintenance Contracts,20/10/2021,Premises Related Expenditure,132602,Economic Growth
378.50,Clearwater Technology Ltd,Communities,Community Development,Gresham,8950,Service Maintenance Contracts,15/12/2021,Premises Related Expenditure,134075,Neighbourhoods
315.00,Quantum Fire & Security Ltd,Transformation,Property Services,Cotgrave Hub/Msc - External,1870,Service Maintenance Contracts,29/10/2021,Premises Related Expenditure,132346,Economic Growth
263.00,Clearwater Technology Ltd,Communities,Community Development,Gresham,8950,Service Maintenance Contracts,15/12/2021,Premises Related Expenditure,134090,Neighbourhoods
253.52,Reach Publishing Services Limited,Communities,Planning & Growth,Conservation,1171,Advertising,02/11/2021,Supplies & Services,132864,Planning
249.00,Reach Publishing Services Limited,Communities,Planning & Growth,Conservation,1171,Advertising,10/12/2021,Supplies & Services,134465,Planning
241.50,Quantum Fire & Security Ltd,Transformation,Property Services,New Offices - Cotgrave,4798,Service Maintenance Contracts,29/10/2021,Premises Related Expenditure,132346,Economic Growth
212.50,Clearwater Technology Ltd,Communities,Community Development,Alford Road,8940,Service Maintenance Contracts,15/12/2021,Premises Related Expenditure,134090,Neighbourhoods
206.25,Clearwater Technology Ltd,Transformation,Property Services,Arena Civic Centre,4718,Service Maintenance Contracts,15/12/2021,Premises Related Expenditure,134090,Economic Growth
191.54,Reach Publishing Services Limited,Communities,Planning & Growth,Conservation,1171,Advertising,02/11/2021,Supplies & Services,133075,Planning
165.00,Clearwater Technology Ltd,Communities,Community Development,Rushcliffe Country Park,1375,Service Maintenance Contracts,15/12/2021,Premises Related Expenditure,134090,Neighbourhoods
165.00,Clearwater Technology Ltd,Communities,Community Development,West Park,8994,Service Maintenance Contracts,15/12/2021,Premises Related Expenditure,134090,Neighbourhoods
165.00,Clearwater Technology Ltd,Neighbourhoods,Strategic Housing,Hostel Hound Lodge,1111,Service Maintenance Contracts,15/12/2021,Premises Related Expenditure,134090,Public Protection
143.20,Reach Publishing Services Limited,Communities,Planning & Growth,Conservation,1171,Advertising,23/11/2021,Supplies & Services,133297,Planning
124.50,Reach Publishing Services Limited,Communities,Planning & Growth,Conservation,1171,Advertising,15/10/2021,Supplies & Services,132713,Planning
110.00,Clearwater Technology Ltd,Communities,Community Development,Sir Julien Cahn Pavilion,8993,Service Maintenance Contracts,15/12/2021,Premises Related Expenditure,134090,Neighbourhoods
96.25,Clearwater Technology Ltd,Communities,Community Development,Gamston Community Hall,8992,Service Maintenance Contracts,15/12/2021,Premises Related Expenditure,134090,Neighbourhoods
87.50,Clearwater Technology Ltd,Transformation,Property Services,Castle Donington,1863,Service Maintenance Contracts,15/12/2021,Premises Related Expenditure,134090,Economic Growth
75.00,Clearwater Technology Ltd,Transformation,Customer Services,Customer Services,4807,Service Maintenance Contracts,15/12/2021,Premises Related Expenditure,134090,Corporate Services
75.00,Clearwater Technology Ltd,Transformation,Property Services,The Point,1886,Service Maintenance Contracts,15/12/2021,Premises Related Expenditure,134090,Economic Growth
75.00,Clearwater Technology Ltd,Transformation,Property Services,Unit 10 Moorbridge,4788,Service Maintenance Contracts,15/12/2021,Premises Related Expenditure,134090,Economic Growth
60.00,Dta Electrical,Communities,Community Development,Gamston Community Hall,8992,Responsive Works - Buildings,05/10/2021,Premises Related Expenditure,132238,Neighbourhoods
23.65,Clearwater Technology Ltd,Communities,Community Development,Alford Road,8940,Service Maintenance Contracts,15/12/2021,Premises Related Expenditure,134075,Neighbourhoods
23.65,Clearwater Technology Ltd,Communities,Community Development,Gamston Community Hall,8992,Service Maintenance Contracts,15/12/2021,Premises Related Expenditure,134075,Neighbourhoods
23.65,Clearwater Technology Ltd,Communities,Community Development,Rushcliffe Country Park,1375,Service Maintenance Contracts,15/12/2021,Premises Related Expenditure,134075,Neighbourhoods
23.65,Clearwater Technology Ltd,Communities,Community Development,Sir Julien Cahn Pavilion,8993,Service Maintenance Contracts,15/12/2021,Premises Related Expenditure,134075,Neighbourhoods
23.65,Clearwater Technology Ltd,Communities,Community Development,West Park,8994,Service Maintenance Contracts,15/12/2021,Premises Related Expenditure,134075,Neighbourhoods
23.65,Clearwater Technology Ltd,Neighbourhoods,Strategic Housing,Hostel Hound Lodge,1111,Service Maintenance Contracts,15/12/2021,Premises Related Expenditure,134075,Public Protection
23.65,Clearwater Technology Ltd,Transformation,Customer Services,Customer Services,4807,Service Maintenance Contracts,15/12/2021,Premises Related Expenditure,134075,Corporate Services
23.65,Clearwater Technology Ltd,Transformation,Property Services,Arena Civic Centre,4718,Service Maintenance Contracts,15/12/2021,Premises Related Expenditure,134075,Economic Growth
23.65,Clearwater Technology Ltd,Transformation,Property Services,Castle Donington,1863,Service Maintenance Contracts,15/12/2021,Premises Related Expenditure,134075,Economic Growth
23.65,Clearwater Technology Ltd,Transformation,Property Services,Unit 10 Moorbridge,4788,Service Maintenance Contracts,15/12/2021,Premises Related Expenditure,134075,Economic Growth
4.30,Acs Systems Uk Ltd T/A Acs Office Solutions,Finance & Corporate Services,Ict,It Rechargeable Costs,4722,Other Peripherals,05/10/2021,Supplies & Services,130607,Corporate Services
2.42,Teleware Plc,Finance & Corporate Services,Ict,Telephones,4870,Telephone Call Charges,30/11/2021,Supplies & Services,133967,Corporate Services
"37,513,146.57",,,,,,,,,,
